{"text_format":"1","workbook":"xlsx","n_sheets":4,"sheets":["Index","MenuDataSheet","XMLSheet","SourceDropdowns"],"not_rendered":{"charts":0,"images":2,"macros":1,"external_links":0,"defined_names":10,"comments":1,"pivot_tables":0},"unopened":[],"bounds":{"document_bytes":16777216,"sheet_cells":100000,"rows_first":2000,"rows_last":500,"rows_between":2000,"halvings":0,"cell_chars":16384,"cell_head_chars":4096},"cells_cut":0,"cells_raw":0,"read":"whole","date_system":"1900"}

{"sheet":"Index","index":0,"n_rows":109,"n_cols":7,"rows_kept":109,"cut":false,"hidden":false,"merged":[]}
[]
["What do you want in your custom Ribbon tab ? Version 1.5",null,null,null,null,null,{"$f":"IF(COUNTIF(C11:C109,\"Error\")>0,\"ERROR : Not all cells have a value\",\"\")","v":""}]
[]
["Name of the Tab ="]
["Choose a option in the A column and in the B column fill in how many buttons you want."]
["Built-in controls and Seperator are always 1. You can use a option more then one time if you want."]
["Do this for all the groups you want in your custom ribbon tab and then push the \"Create menu table\" button."]
[]
["Groups","Buttons"]
["Group1"]
["Custom button",3,{"$f":"IF(COUNTA(A11:B11)=1,\"Error\",\"\")","v":""}]
["Custom button",1,{"$f":"IF(COUNTA(A12:B12)=1,\"Error\",\"\")","v":""},"This is the result if you not change the icons and captions or built-in control names."]
["Separator",1,""]
["Custom menu",3,""]
["Custom splitbutton",3,""]
[null,null,""]
[null,null,""]
[null,null,""]
[null,null,""]
["Group2","how many buttons ?"]
[null,null,"","Caption 12 is the menu with 5 buttons. Caption 24 is the splitbutton with two buttons."]
[null,null,"","If you click on the smiley it run a macro and if you click on caption 24 the menu with two buttons popup."]
[null,null,""]
[null,null,"","If you want to insert built-in controls it is easy if you already know the names of the controls."]
[null,null,"","Download this file \"Built-in_Controls_Excel_2007.zip\" from my site and make a note of the names"]
[null,null,"","you want to insert so you can choose them in the dropdown on the sheet \"MenuDataSheet\""]
[null,null,""]
[null,null,"","Note: when you select a cell in the ImageMso column or name column of a Built-in control"]
[null,null,"","a userform will popup with a dropdown with all your choices."]
["Group3","how many buttons ?"]
[null,null,""]
[null,null,""]
[null,null,""]
[null,null,""]
[null,null,""]
[null,null,""]
[null,null,""]
[null,null,""]
[null,null,""]
["Group4","how many buttons ?"]
[null,null,""]
[null,null,""]
[null,null,""]
[null,null,""]
[null,null,""]
[null,null,""]
[null,null,""]
[null,null,""]
[null,null,""]
["Group5","how many buttons ?"]
[null,null,""]
[null,null,""]
[null,null,""]
[null,null,""]
[null,null,""]
[null,null,""]
[null,null,""]
[null,null,""]
[null,null,""]
["Group6","how many buttons ?"]
[null,null,""]
[null,null,""]
[null,null,""]
[null,null,""]
[null,null,""]
[null,null,""]
[null,null,""]
[null,null,""]
[null,null,""]
["Group7","how many buttons ?"]
[null,null,""]
[null,null,""]
[null,null,""]
[null,null,""]
[null,null,""]
[null,null,{"$f":"IF(COUNTA(A76:B76)=1,\"Error\",\"\")","v":""}]
[null,null,""]
[null,null,""]
[null,null,""]
["Group8","how many buttons ?"]
[null,null,""]
[null,null,""]
[null,null,""]
[null,null,""]
[null,null,""]
[null,null,""]
[null,null,""]
[null,null,""]
[null,null,""]
["Group9","how many buttons ?"]
[null,null,""]
[null,null,""]
[null,null,""]
[null,null,""]
[null,null,""]
[null,null,""]
[null,null,""]
[null,null,""]
[null,null,""]
["Group10","how many buttons ?"]
[null,null,""]
[null,null,""]
[null,null,""]
[null,null,""]
[null,null,""]
[null,null,""]
[null,null,""]
[null,null,""]
[null,null,""]

{"sheet":"MenuDataSheet","index":1,"n_rows":201,"n_cols":8,"rows_kept":201,"cut":false,"hidden":false,"merged":[]}
[]
[]
["Error","Control","Name","Label","OnAction","ImageMSO","Size","Description"]
[{"$f":"IF(B4<>\"\",IF( COUNTA(B4:G4) = (VLOOKUP(B4,controlsnum,2,FALSE)-IF(AND(OR(B4=\"Button Menu\",B4=\"Button splitbutton menu\",,B4=\"Button one splitbutton\"),F4=\"\"),1,0)),\"\",\"Error\"),\"\")","v":""},"Group","Group1","Custom Control"]
["","Button","KotakPesan11","Kotak Pesan 1","KotakPesan1","AccessListCustom","normal"]
["","Button","KotakPesan12","Kotak Pesan 2","KotakPesan2","AccessListCustomDatasheet","normal"]
["","Button","KotakPesan13","Kotak Pesan 3","KotakPesan3","AccessListEvents","normal"]
["","Button","KotakInput","Kotak Input","KotakInput","ViewsLayoutView","large"]
["","Separator","Separator"]
["","Menu","MenuKotakPesan","Kotak Pesan",null,"AccessListCustom","large"]
["","Button menu","KotakPesan21","Kotak Pesan 1","KotakPesan1","AccessListCustom"]
["","Button menu","KotakPesan22","Kotak Pesan 2","KotakPesan2","AccessListCustomDatasheet"]
["","Button menu","KotakPesan23","Kotak Pesan 3","KotakPesan3","AccessListEvents"]
["","Splitbutton","SplitButtonKotakPesan",null,null,null,"large"]
["","Button one splitbutton","ButtonKotakPesan","Kotak Pesan","KotakPesan1","AccessListCustom"]
["","Menu splitbutton","SplitKotakPesan",null,null,null,"large"]
["","Button splitbutton menu","KotakPesan31","Kotak Pesan 1","KotakPesan1","AccessListCustom",null,"Tampilkan kotak pesan 1"]
["","Button splitbutton menu","KotakPesan32","Kotak Pesan 2","KotakPesan2","AccessListCustomDatasheet",null,"Tampilkan kotak pesan 2"]
["","Button splitbutton menu","KotakPesan33","Kotak Pesan 3","KotakPesan3","AccessListEvents",null,"Tampilkan kotak pesan 3"]
[""]
[""]
[""]
[""]
[""]
[""]
[""]
[""]
[""]
[""]
[""]
[""]
[""]
[""]
[""]
[""]
[{"$f":"IF(B36<>\"\",IF( COUNTA(B36:G36) = (VLOOKUP(B36,controlsnum,2,FALSE)-IF(AND(OR(B36=\"Button Menu\",B36=\"Button splitbutton menu\",,B36=\"Button one splitbutton\"),F36=\"\"),1,0)),\"\",\"Error\"),\"\")","v":""}]
[""]
[""]
[""]
[""]
[""]
[""]
[""]
[""]
[""]
[""]
[""]
[""]
[""]
[""]
[""]
[""]
[""]
[""]
[""]
[""]
[""]
[""]
[""]
[""]
[""]
[""]
[""]
[""]
[""]
[""]
[""]
[{"$f":"IF(B68<>\"\",IF( COUNTA(B68:G68) = (VLOOKUP(B68,controlsnum,2,FALSE)-IF(AND(OR(B68=\"Button Menu\",B68=\"Button splitbutton menu\",,B68=\"Button one splitbutton\"),F68=\"\"),1,0)),\"\",\"Error\"),\"\")","v":""}]
[""]
[""]
[""]
[""]
[""]
[""]
[""]
[""]
[""]
[""]
[""]
[""]
[""]
[""]
[""]
[""]
[""]
[""]
[""]
[""]
[""]
[""]
[""]
[""]
[""]
[""]
[""]
[""]
[""]
[""]
[""]
[{"$f":"IF(B100<>\"\",IF( COUNTA(B100:G100) = (VLOOKUP(B100,controlsnum,2,FALSE)-IF(AND(OR(B100=\"Button Menu\",B100=\"Button splitbutton menu\",,B100=\"Button one splitbutton\"),F100=\"\"),1,0)),\"\",\"Error\"),\"\")","v":""}]
[""]
[""]
[""]
[""]
[""]
[""]
[""]
[""]
[""]
[""]
[""]
[""]
[""]
[""]
[""]
[""]
[""]
[""]
[""]
[""]
[""]
[""]
[""]
[""]
[""]
[""]
[""]
[""]
[""]
[""]
[""]
[{"$f":"IF(B132<>\"\",IF( COUNTA(B132:G132) = (VLOOKUP(B132,controlsnum,2,FALSE)-IF(AND(OR(B132=\"Button Menu\",B132=\"Button splitbutton menu\",,B132=\"Button one splitbutton\"),F132=\"\"),1,0)),\"\",\"Error\"),\"\")","v":""}]
[""]
[""]
[""]
[""]
[""]
[""]
[""]
[""]
[""]
[""]
[""]
[""]
[""]
[""]
[""]
[""]
[""]
[""]
[""]
[""]
[""]
[""]
[""]
[""]
[""]
[""]
[""]
[""]
[""]
[""]
[""]
[{"$f":"IF(B164<>\"\",IF( COUNTA(B164:G164) = (VLOOKUP(B164,controlsnum,2,FALSE)-IF(AND(OR(B164=\"Button Menu\",B164=\"Button splitbutton menu\",,B164=\"Button one splitbutton\"),F164=\"\"),1,0)),\"\",\"Error\"),\"\")","v":""}]
[""]
[""]
[""]
[""]
[""]
[""]
[""]
[""]
[""]
[""]
[""]
[""]
[""]
[""]
[""]
[""]
[""]
[""]
[""]
[""]
[""]
[""]
[""]
[""]
[""]
[""]
[""]
[""]
[""]
[""]
[""]
[{"$f":"IF(B196<>\"\",IF( COUNTA(B196:G196) = (VLOOKUP(B196,controlsnum,2,FALSE)-IF(AND(OR(B196=\"Button Menu\",B196=\"Button splitbutton menu\",,B196=\"Button one splitbutton\"),F196=\"\"),1,0)),\"\",\"Error\"),\"\")","v":""}]
[""]
[""]
[""]
[""]
[""]

{"sheet":"XMLSheet","index":2,"n_rows":42,"n_cols":2,"rows_kept":42,"cut":false,"hidden":false,"merged":[]}
[]
[null,"Click this button to copy the XML below on the Clipboard."]
[]
[]
[null,"Paste it in the Custom UI Editor and validate it and then save it in the workbook you want."]
[null,"Look on this page for all information if you are not familiar with this."]
[null,"http://www.rondebruin.nl/ribbon.htm"]
[]
[]
["<customUI xmlns=\"http://schemas.microsoft.com/office/2006/01/customui\">"]
["<ribbon>"]
["<tabs>"]
["<tab id=\"YourCustomTabOnTheRibbon\" label=\"\" insertAfterMso=\"TabHome\">"]
[]
["<group id=\"Group1\" label=\"Custom Control\">"]
[null,"<button id=\"KotakPesan11\" label=\"Kotak Pesan 1\" onAction=\"KotakPesan1\" imageMso=\"AccessListCustom\" size= \"normal\"/>"]
[null,"<button id=\"KotakPesan12\" label=\"Kotak Pesan 2\" onAction=\"KotakPesan2\" imageMso=\"AccessListCustomDatasheet\" size= \"normal\"/>"]
[null,"<button id=\"KotakPesan13\" label=\"Kotak Pesan 3\" onAction=\"KotakPesan3\" imageMso=\"AccessListEvents\" size= \"normal\"/>"]
[null,"<button id=\"KotakInput\" label=\"Kotak Input\" onAction=\"KotakInput\" imageMso=\"ViewsLayoutView\" size= \"large\"/>"]
["<separator id=\"Separator\"/>"]
[]
["<menu id=\"MenuKotakPesan\" label=\"Kotak Pesan\" imageMso=\"AccessListCustom\" size= \"large\">"]
[null,"<button id=\"KotakPesan21\" label=\"Kotak Pesan 1\" onAction=\"KotakPesan1\" imageMso=\"AccessListCustom\"/>"]
[null,"<button id=\"KotakPesan22\" label=\"Kotak Pesan 2\" onAction=\"KotakPesan2\" imageMso=\"AccessListCustomDatasheet\"/>"]
[null,"<button id=\"KotakPesan23\" label=\"Kotak Pesan 3\" onAction=\"KotakPesan3\" imageMso=\"AccessListEvents\"/>"]
["</menu>"]
[]
["<splitButton id=\"SplitButtonKotakPesan\" size=\"large\">"]
[null,"<button id=\"ButtonKotakPesan\" label=\"Kotak Pesan\" onAction=\"KotakPesan1\" imageMso=\"AccessListCustom\"/>"]
["<menu id=\"SplitKotakPesan\" itemSize= \"large\">"]
[null,"<button id=\"KotakPesan31\" label=\"Kotak Pesan 1\" onAction=\"KotakPesan1\" imageMso=\"AccessListCustom\" description=\"Tampilkan kotak pesan 1\"/>"]
[null,"<button id=\"KotakPesan32\" label=\"Kotak Pesan 2\" onAction=\"KotakPesan2\" imageMso=\"AccessListCustomDatasheet\" description=\"Tampilkan kotak pesan 2\"/>"]
[null,"<button id=\"KotakPesan33\" label=\"Kotak Pesan 3\" onAction=\"KotakPesan3\" imageMso=\"AccessListEvents\" description=\"Tampilkan kotak pesan 3\"/>"]
["</menu>"]
["</splitButton>"]
[]
["</group>"]
[]
["</tab>"]
["</tabs>"]
["</ribbon>"]
["</customUI>"]

{"sheet":"SourceDropdowns","index":3,"n_rows":1834,"n_cols":11,"rows_kept":1834,"cut":false,"hidden":true,"merged":[]}
["group",3,"A","Separator",null,"FileNewDefault","FileProperties","FileSaveAsMenu","FilePrepareMenu","Font","Undo"]
["Button",6,"AboveText","Custom button",null,"FileOpen","FileDocumentEncrypt","FilePrintMenu","FilePermissionRestrictMenu","FontSize","Redo"]
["Button menu",5,"AcceptInvitation","Custom menu",null,"FileSave","FilePermissionUnrestricted","PasteMenu","FileSendMenu","NumberFormatGallery","BorderColorPickerExcel"]
["Button splitbutton menu",5,"AccessFormDatasheet","Custom splitbutton",null,"FileSendAsAttachment","FilePermissionDoNotDistribute","UnderlineGallery","MenuPublish","PageScaleToFitWidth","CellFillColorPicker"]
["Button one splitbutton",5,"AccessFormModalDialog","Built-in button",null,"FilePrintQuick","FileViewDigitalSignatures","BordersGallery","FileServerTasksMenu","PageScaleToFitHeight","FontColorPicker"]
["SplitButton",3,"AccessFormWizard","Built-in toggle button",null,"FilePrintPreview","FileMarkAsFinal","PhoneticGuideMenu","PasteAsPictureMenu","DocumentLocation","ConditionalFormattingDataBarsGallery"]
["Menu",5,"AccessListAssets","Built-in splitbutton",null,"Spelling","FileCreateDocumentWorkspace","AlignLeftToRightMenu","OrientationMenu","ChartElementSelector","ConditionalFormattingColorScalesGallery"]
["Menu splitbutton",3,"AccessListContacts","Built-in menu",null,"SortAscendingExcel","FileDocumentManagementInformation","MergeCenterMenu","ConditionalFormattingMenu",null,"ConditionalFormattingIconSetsGallery"]
["Separator",2,"AccessListCustom","Built-in combobox",null,"SortDescendingExcel","FormatPainter","AccountingFormatMenu","ConditionalFormattingHighlightCellsMenu",null,"FormatAsTableGallery"]
["Built-in button",3,"AccessListCustomDatasheet","Built-in gallery",null,"FileNew","Bold","InsertCellstMenu","ConditionalFormattingTopBottomMenu",null,"CellStylesGallery"]
["Built-in toggle button",3,"AccessListEvents",null,null,"UpgradeWorkbook","Italic","TableDeleteRowsAndColumnsMenu","ConditionalFormattingClearMenu",null,"SheetTabColorGallery"]
["Built-in splitbutton",3,"AccessListIssues",null,null,"FileSaveAs","Underline","AutoSumMenu","FormatCellsMenu",null,"ShapesInsertGallery"]
["Built-in menu",3,"AccessListTasks",null,null,"FileSaveAsExcelXlsx","UnderlineDouble","PivotTableInsertMenu","HideAndUnhideMenu",null,"ChartTypeColumnInsertGallery"]
["Built-in combobox",2,"AccessNavigationOptions",null,null,"FileSaveAsExcelXlsxMacro","BorderDrawLine","TextBoxInsertMenu","FillMenu",null,"ChartTypeLineInsertGallery"]
["Built-in gallery",3,"AccessOfflineLists",null,null,"FileSaveAsExcelXlsb","BorderDrawGrid","SignatureLineInsertMenu","ClearMenu",null,"ChartTypePieInsertGallery"]
[null,null,"AccessOnlineLists",null,null,"FileSaveAsExcel97_2003","BorderErase","ObjectBringToFrontMenu","SortFilterMenu",null,"ChartTypeBarInsertGallery"]
[null,null,"AccessRecycleBin",null,null,"AdvertisePublishAs","PhoneticGuideFieldShow","ObjectSendToBackMenu","SelectMenuExcel",null,"ChartTypeAreaInsertGallery"]
[null,null,"AccessRefreshAllLists",null,null,"FileSaveAsPdfOrXps","AlignLeft","NameDefineMenu","PrintAreaMenu",null,"ChartTypeXYScatterInsertGallery"]
[null,null,"AccessRelinkLists",null,null,"FileSaveAsOtherFormats","AlignCenter","TraceRemoveArrowsMenu","PageBreakMenu",null,"ChartTypeOtherInsertGallery"]
[null,null,"AccessReportMore",null,null,"FilePrint","AlignRight","ErrorCheckingMenu","ObjectAlignMenu",null,"WordArtInsertGallery"]
[null,null,"AccessTableAssets",null,null,"FileDocumentInspect","AlignTopExcel","RefreshAllMenu","ObjectsGroupMenu",null,"ThemesGallery"]
[null,null,"AccessTableContacts",null,null,"FilePermissionView","AlignMiddleExcel","DataValidationMenu","FormulaMoreFunctionsMenu",null,"ThemeColorsGallery"]
[null,null,"AccessTableEvents",null,null,"FilePermissionRestrictAs","AlignBottomExcel","OutlineGroupMenu","CalculationOptionsMenu",null,"ThemeFontsGallery"]
[null,null,"AccessTableIssues",null,null,"FileAddDigitalSignature","TextOrientationAngleCounterclockwise","OutlineUngroupMenu","WhatIfAnalysisMenu",null,"ThemeEffectsGallery"]
[null,null,"AccessTableTasks",null,null,"FileCompatibilityChecker","TextOrientationAngleClockwise","MenuMacros","ReviewProtectWorkbookMenu",null,"PageMarginsGallery"]
[null,null,"AccountingFormat",null,null,"FileLinksToFiles","TextOrientationVertical","BorderDrawMenu","ReviewTrackChangesMenu",null,"PageOrientationGallery"]
[null,null,"AccountMenu",null,null,"FileEmailAsPdfEmailAttachment","TextOrientationRotateUp","SmartArtAddShapeSplitMenu","WindowSwitchWindowsMenuExcel",null,"PageSizeGallery"]
[null,null,"ActionInsert",null,null,"FileEmailAsXpsEmailAttachment","TextOrientationRotateDown","PivotTableOptionsMenu","MdiChildSystemMenu",null,"ObjectRotateGallery"]
[null,null,"ActiveXButton",null,null,"FileInternetFax","TextDirectionLeftToRight","RefreshMenu","_3DSurfaceMaterialClassic",null,"FunctionsRecentlyUsedtInsertGallery"]
[null,null,"ActiveXComboBox",null,null,"FilePublishExcelServices","TextDirectionRightToLeft","PivotTableEditDataSource","SmartArtOrganizationChartMenu",null,"FunctionsFinancialInsertGallery"]
[null,null,"ActiveXFrame",null,null,"FileSaveToDocumentManagementServer","TextDirectionContext",null,"ShapeEffectsMenu",null,"FunctionsLogicalInsertGallery"]
[null,null,"ActiveXLabel",null,null,"FileCheckIn","WrapText",null,"TextEffectsMenu",null,"FunctionsTextInsertGallery"]
[null,null,"ActiveXListBox",null,null,"FileCheckOut","MergeCenter",null,"ChartAxisTitles",null,"FunctionsDateTimeInsertGallery"]
[null,null,"ActiveXRadioButton",null,null,"FileCheckOutDiscard","Lock",null,"ChartAxes",null,"FunctionsLookupReferenceInsertGallery"]
[null,null,"ActiveXScrollBar",null,null,"FileVersionHistory","Filter",null,"ChartGridlines",null,"FunctionsMathTrigInsertGallery"]
[null,null,"ActiveXSpinButton",null,null,"FileWorkflowTasks","ObjectsSelect",null,"ObjectEditShapeMenu",null,"FunctionsStatisticalInsertGallery"]
[null,null,"ActiveXTextBox",null,null,"FileExcelServicesOptions","SelectionPane",null,"PictureEffectsMenu",null,"FunctionsEngineeringInsertGallery"]
[null,null,"ActiveXToggleButton",null,null,"FileStartWorkflow","ClipArtInsert",null,"PivotTableClearMenu",null,"FunctionsCubeInsertGallery"]
[null,null,"AddInManager",null,null,"FileClose","TextBoxInsertExcel",null,"PivotTableSelectFlyout",null,"FunctionsInformationInsertGallery"]
[null,null,"AddInsMenu",null,null,"Paste","TextBoxInsertHorizontal",null,"PivotTableFormulasMenu",null,"NameUseInFormula"]
[null,null,"AddOrRemoveAttendees",null,null,"PasteFormulas","TextBoxInsertVertical",null,"PivotTableOlapTools",null,"CircularReferences"]
[null,null,"AddressBook",null,null,"PasteValues","RightToLeftDocument",null,"PivotTableLayoutSubtotals",null,"GetExternalDataFromOtherSources"]
[null,null,"AddToFavorites",null,null,"PasteNoBorders","SnapToGrid",null,"PivotTableLayoutGrandTotals",null,"ViewFreezePanesGallery"]
[null,null,"AdpConstraints",null,null,"PasteTranspose","SnapToShapes",null,"PivotTableLayoutReportLayout",null,"ControlsGallery"]
[null,null,"AdpDiagramAddRelatedTables",null,null,"PasteLink","ViewGridlinesToggleExcel",null,"PivotTableLayoutBlankRows",null,"ZoomClassic"]
[null,null,"AdpDiagramArrangeSelection",null,null,"PasteSpecialDialog","ShowFormulas",null,"TableExportMenu",null,"StyleGalleryClassic"]
[null,null,"AdpDiagramArrangeTables",null,null,"PasteAsHyperlink","WatchWindow",null,"PivotChartClearMenu",null,"ScenarioGallery"]
[null,null,"AdpDiagramAutosizeSelectedTables",null,null,"CopyAsPicture","CalculationOptionsAutomatically",null,null,null,"_3DEffectsGalleryClassic"]
[null,null,"AdpDiagramColumnNames",null,null,"PasteAsPicture","CalculationOptionsAutomaticallyExceptDataTables",null,null,null,"_3DEffectColorPickerClassic"]
[null,null,"AdpDiagramColumnProperties",null,null,"PastePictureLink","CalculationOptionsManuallly",null,null,null,"_3DExtrusionDepthGalleryClassic"]
[null,null,"AdpDiagramCustomView",null,null,"Cut","ResearchPane",null,null,null,"_3DDirectionGalleryClassic"]
[null,null,"AdpDiagramDeleteTable",null,null,"Copy","ReviewShowAllComments",null,null,null,"_3DLightingGalleryClassic"]
[null,null,"AdpDiagramHideTable",null,null,"FontSizeIncrease","ReviewShowInk",null,null,null,"_3DSurfaceMaterialGalleryClassic"]
[null,null,"AdpDiagramKeys",null,null,"FontSizeDecrease","ReviewProtectWorkbook",null,null,null,"ShadowStyleGalleryClassic"]
[null,null,"AdpDiagramNameOnly",null,null,"BorderBottomNoToggle","ReviewRestrictEditing",null,null,null,"ShadowColorPickerClassic"]
[null,null,"AdpDiagramNewTable",null,null,"BorderTopNoToggle","ViewNormalViewExcel",null,null,null,"SmartArtLayoutGallery"]
[null,null,"AdpDiagramRecalculatePageBreaks",null,null,"BorderLeftNoToggle","ViewPageLayoutView",null,null,null,"SmartArtChangeColorsGallery"]
[null,null,"AdpDiagramShowRelationshipLabels",null,null,"BorderRightNoToggle","ViewPageBreakPreviewView",null,null,null,"SmartArtStylesGallery"]
[null,null,"AdpDiagramTableModesMenu",null,null,"BorderNone","ViewFullScreenView",null,null,null,"ShapeChangeShapeGallery"]
[null,null,"AdpManageIndexes",null,null,"BordersAll","ViewDocumentActionsPane",null,null,null,"ShapeStylesGallery"]
[null,null,"AdpOutputOperationsAddToOutput",null,null,"BorderOutside","WindowSplitToggle",null,null,null,"ShapeStylesOtherThemeFillsGallery"]
[null,null,"AdpOutputOperationsTableRemove",null,null,"BorderThickOutside","ViewSideBySide",null,null,null,"ShapeFillColorPicker"]
[null,null,"AdpPrimaryKey",null,null,"BorderDoubleBottom","WindowSideBySideSynchronousScrolling",null,null,null,"GradientGallery"]
[null,null,"AdpStoredProcedureEditSql",null,null,"BorderThickBottom","WindowNameGoesHere",null,null,null,"ShapeFillTextureGallery"]
[null,null,"AdpStoredProcedureQueryAppendValues",null,null,"BorderTopAndBottom","MacroRelativeReferences",null,null,null,"ShapeOutlineColorPicker"]
[null,null,"AdpVerifySqlSyntax",null,null,"BorderTopAndThickBottom","DesignMode",null,null,null,"OutlineWeightGallery"]
[null,null,"AdpViewDiagramPane",null,null,"BorderTopAndDoubleBottom","XmlSource",null,null,null,"OutlineDashesGallery"]
[null,null,"AdpViewGridPane",null,null,"BorderMoreColorsDialog","ZoomPrintPreviewExcel",null,null,null,"ArrowStyleGallery"]
[null,null,"AdpViewSqlPane",null,null,"BordersMoreDialog","ShapeRectangle",null,null,null,"ObjectEffectPresetGallery"]
[null,null,"AdvancedFilterDialog",null,null,"FontShadingColorMoreColorsDialog","SendCopySendToMailRecipient",null,null,null,"ObjectEffectShadowGallery"]
[null,null,"AdvertisePublishAs",null,null,"FontColorMoreColorsDialogExcel","ShapeOval",null,null,null,"ReflectionGallery"]
[null,null,"AlignBottomExcel",null,null,"PhoneticGuideEdit","Strikethrough",null,null,null,"ObjectEffectGlowGallery"]
[null,null,"AlignCenter",null,null,"PhoneticGuideSettings","AlignJustify",null,null,null,"GlowColorPicker"]
[null,null,"AlignDialog",null,null,"IndentDecreaseExcel","BorderBottom",null,null,null,"ObjectEffectSoftEdgesGallery"]
[null,null,"AlignDistributeHorizontallyClassic",null,null,"IndentIncreaseExcel","ShapeElbowConnectorArrow",null,null,null,"BevelShapeGallery"]
[null,null,"AlignDistributeVerticallyClassic",null,null,"CellAlignmentOptions","ShapeStraightConnectorArrow",null,null,null,"_3DRotationGallery"]
[null,null,"AlignJustify",null,null,"MergeCellsAcross","ShapeFreeform",null,null,null,"TextStylesGallery"]
[null,null,"AlignJustifyHigh",null,null,"MergeCells","ShapeCurve",null,null,null,"TextFillColorPicker"]
[null,null,"AlignJustifyLow",null,null,"UnmergeCells","ParagraphDistributed",null,null,null,"TextFillGradientGallery"]
[null,null,"AlignJustifyMedium",null,null,"NumberFormatsDialog","BorderTop",null,null,null,"TextFillTextureGallery"]
[null,null,"AlignJustifyThai",null,null,"AccountingFormat","BorderLeft",null,null,null,"TextOutlineColorPicker"]
[null,null,"AlignLeft",null,null,"AccountingFormatExcel","BorderRight",null,null,null,"TextOutlineWeightGallery"]
[null,null,"AlignMiddleExcel",null,null,"AccountingFormatMoreExcel","ShapeStraightConnector",null,null,null,"TextOutlineDashesGallery"]
[null,null,"AlignRight",null,null,"PercentStyle","ShapeRoundedRectangularCallout",null,null,null,"TextEffectShadowGallery"]
[null,null,"AlignTopExcel",null,null,"CommaStyle","ShapeRightBrace",null,null,null,"TextReflectionGallery"]
[null,null,"AlternativeText",null,null,"DecimalsIncrease","ShapeRoundedRectangle",null,null,null,"TextEffectGlowGallery"]
[null,null,"AnimationAudio",null,null,"DecimalsDecrease","ShapeArc",null,null,null,"TextGlowColorPicker"]
[null,null,"AnimationCustom",null,null,"ConditionalFormattingHighlightGreaterThan","ShapeRightArrow",null,null,null,"BevelTextGallery"]
[null,null,"AnimationGallery",null,null,"ConditionalFormattingHighlightLessThan","ShapeScribble",null,null,null,"TextEffects3DRotationGallery"]
[null,null,"AnimationOnClick",null,null,"ConditionalFormattingHighlightBetween","ShapeLeftBrace",null,null,null,"TextEffectTransformGallery"]
[null,null,"AnimationPreview",null,null,"ConditionalFormattingHighlightEqualTo","ShapeDownArrow",null,null,null,"ChartLayoutGallery"]
[null,null,"AnimationTransitionGallery",null,null,"ConditionalFormattingHighlightTextContaining","_3DSurfaceWireFrameClassic",null,null,null,"ChartStylesGallery"]
[null,null,"AnimationTransitionSoundGallery",null,null,"ConditionalFormattingHighlightDateOccuring","_3DSurfaceMatteClassic",null,null,null,"ChartTitle"]
[null,null,"AnimationTransitionSpeedGallery",null,null,"ConditionalFormattingHighlightDuplicateValues","_3DSurfacePlasticClassic",null,null,null,"ChartPrimaryHorizontalAxisTitle"]
[null,null,"ApplyStylesPane",null,null,"ConditionalFormattingHighlightRulesMore","_3DSurfaceMetalClassic",null,null,null,"ChartPrimaryVerticalAxisTitle"]
[null,null,"AppointmentAttachment",null,null,"ConditionalFormattingTopNItems","ShapeElbowConnector",null,null,null,"ChartSecondaryHorizontalAxisTitle"]
[null,null,"AppointmentBusy",null,null,"ConditionalFormattingTopNPercent","ShapeIsoscelesTriangle",null,null,null,"ChartSecondaryVerticalAxisTitle"]
[null,null,"AppointmentColor0",null,null,"ConditionalFormattingBottomNItems","SpeakOnEnter",null,null,null,"ChartDepthAxisTitle"]
[null,null,"AppointmentColor1",null,null,"ConditionalFormattingBottomNPercent","ShapeStar",null,null,null,"ChartLegend"]
[null,null,"AppointmentColor10",null,null,"ConditionalFormattingAboveAverage","SpeakByRows",null,null,null,"ChartDataLabel"]
[null,null,"AppointmentColor2",null,null,"ConditionalFormattingBelowAverage","SpeakByColumns",null,null,null,"ChartDataTable"]
[null,null,"AppointmentColor3",null,null,"ConditionalFormattingTopBottomMore","CombineCharacters",null,null,null,"ChartPrimaryHorizontalAxis"]
[null,null,"AppointmentColor4",null,null,"ConditionalFormattingDataBarsMoreOptions","_3DExtrusionPerspectiveClassic",null,null,null,"ChartPrimaryVerticalAxis"]
[null,null,"AppointmentColor5",null,null,"ConditionalFormattingColorScalesMore","_3DExtrusionParallelClassic",null,null,null,"ChartSecondaryHorizontalAxis"]
[null,null,"AppointmentColor6",null,null,"ConditionalFormattingIconSetsMore","_3DLightingFlatClassic",null,null,null,"ChartSecondaryVerticalAxis"]
[null,null,"AppointmentColor7",null,null,"ConditionalFormattingNewRule","_3DLightingNormalClassic",null,null,null,"ChartDepthAxis"]
[null,null,"AppointmentColor8",null,null,"ConditionalFormattingClearSelectedCells","_3DLightingDimClassic",null,null,null,"ChartPrimaryHorizontalGridlines"]
[null,null,"AppointmentColor9",null,null,"ConditionalFormattingClearSheet","_3DEffectsOnOffClassic",null,null,null,"ChartPrimaryVerticalGridlines"]
[null,null,"AppointmentColorDialog",null,null,"ConditionalFormattingClearTable","ShadowSemitransparentClassic",null,null,null,"ChartSecondaryHorizontalGridlines"]
[null,null,"AppointmentOutOfOffice",null,null,"ConditionalFormattingClearPivotTable","ShadowOnOrOffClassic",null,null,null,"ChartSecondaryVerticalGridlines"]
[null,null,"ArrowStyleGallery",null,null,"ConditionalFormattingsManage","SmartArtRightToLeft",null,null,null,"ChartDepthGridlines"]
[null,null,"AsianLayoutCharacterScaling",null,null,"TableStyleNew","SmartArtTextPane",null,null,null,"ChartPlotArea"]
[null,null,"AsianLayoutCharactersEnclose",null,null,"PivotTableNewStyle","SmartArtEditIn2D",null,null,null,"ChartWall"]
[null,null,"AsianLayoutCombineCharacters",null,null,"CellStyleNew","ObjectEditPoints",null,null,null,"ChartFloor"]
[null,null,"AsianLayoutMenu",null,null,"CellStylesMerge","ShapeRerouteConnectors",null,null,null,"ChartTrendline"]
[null,null,"AttachItem",null,null,"CellsInsertSmart","PictureSetTransparentColor",null,null,null,"ChartLines"]
[null,null,"AttachMenu",null,null,"CellsInsertDialog","PictureCrop",null,null,null,"ChartUpDownBars"]
[null,null,"AudioNoteDelete",null,null,"SheetRowsInsert","PivotTableEnableSelection",null,null,null,"ChartErrorBars"]
[null,null,"AutoCorrect",null,null,"SheetColumnsInsert","PivotFieldListShowHide",null,null,null,"PictureBrightnessGallery"]
[null,null,"AutoDial",null,null,"TableRowsInsertAboveExcel","PivotPlusMinusButtonsShowHide",null,null,null,"PictureContrastGallery"]
[null,null,"AutoFilterClassic",null,null,"TableRowsInsertBelowExcel","PivotPlusMinusFieldHeadersShowHide",null,null,null,"PictureRecolorGallery"]
[null,null,"AutoFormat",null,null,"TableColumnsInsertLeftExcel","PivotChartFilterShow",null,null,null,"RecolorColorPicker"]
[null,null,"AutoFormatChange",null,null,"TableColumnsInsertRightExcel","InkBallpointPen",null,null,null,"PictureStylesGallery"]
[null,null,"AutoFormatWizard",null,null,"SheetInsert","InkFeltTipPen",null,null,null,"PictureShapeGallery"]
[null,null,"AutoSum",null,null,"CellsDeleteSmart","InkHighlighter",null,null,null,"OutlineColorPicker"]
[null,null,"AutoSummarize",null,null,"CellsDelete","InkEraser",null,null,null,"PictureEffectsPresetGallery"]
[null,null,"AutoSummaryViewByHighlight",null,null,"SheetRowsDelete",null,null,null,null,"PictureEffectsShadowGallery"]
[null,null,"B",null,null,"SheetColumnsDelete",null,null,null,null,"PictureReflectionGallery"]
[null,null,"BarcodeInsert",null,null,"TableRowsDeleteExcel",null,null,null,null,"PictureEffectsGlowGallery"]
[null,null,"BehindText",null,null,"TableColumnsDeleteExcel",null,null,null,null,"PictureEffectsSoftEdgesGallery"]
[null,null,"BevelShapeGallery",null,null,"SheetDelete",null,null,null,null,"_3DBevelPictureTopGallery"]
[null,null,"BevelTextGallery",null,null,"RowHeight",null,null,null,null,"PictureRotationGallery"]
[null,null,"BibliographyAddNewPlaceholder",null,null,"RowHeightAutoFit",null,null,null,null,"PivotTableStylesGallery"]
[null,null,"BibliographyAddNewSource",null,null,"ColumnWidth",null,null,null,null,"HeaderFooterHeaderGallery"]
[null,null,"BibliographyGallery",null,null,"ColumnWidthAutoFit",null,null,null,null,"HeaderFooterFooterGallery"]
[null,null,"BibliographyInsert",null,null,"ColumnWidthDefault",null,null,null,null,"TableStylesGalleryExcel"]
[null,null,"BibliographyManageSources",null,null,"RowsHide",null,null,null,null,"InkColorPicker"]
[null,null,"BibliographyStyle",null,null,"ColumnsHide"]
[null,null,"BizBarPublishToSharePoint",null,null,"SheetHide"]
[null,null,"BlackAndWhite",null,null,"RowsUnhide"]
[null,null,"BlackAndWhiteAutomatic",null,null,"ColumnsUnhide"]
[null,null,"BlackAndWhiteBlack",null,null,"SheetUnhide"]
[null,null,"BlackAndWhiteBlackWithGrayscaleFill",null,null,"SheetRename"]
[null,null,"BlackAndWhiteBlackWithWhiteFill",null,null,"SheetMoveOrCopy"]
[null,null,"BlackAndWhiteDontShow",null,null,"SheetTabColorMoreColorsDialog"]
[null,null,"BlackAndWhiteGrayscale",null,null,"SheetProtect"]
[null,null,"BlackAndWhiteGrayWithWhiteFill",null,null,"FormatCellsDialog"]
[null,null,"BlackAndWhiteInverseGrayscale",null,null,"AutoSum"]
[null,null,"BlackAndWhiteLightGrayscale",null,null,"AutoSumAverage"]
[null,null,"BlackAndWhiteWhite",null,null,"AutoSumCount"]
[null,null,"BlogHomePage",null,null,"AutoSumMax"]
[null,null,"BlogPublish",null,null,"AutoSumMin"]
[null,null,"BlogPublishDraft",null,null,"AutoSumMoreFunctions"]
[null,null,"BodyTextHide",null,null,"FillDown"]
[null,null,"Bold",null,null,"FillRight"]
[null,null,"BorderBottom",null,null,"FillUp"]
[null,null,"BorderDiagonalDown",null,null,"FillLeft"]
[null,null,"BorderDiagonalUp",null,null,"FillAcrossWorksheets"]
[null,null,"BorderDrawGrid",null,null,"FillSeries"]
[null,null,"BorderInside",null,null,"FillJustify"]
[null,null,"BorderInsideHorizontal",null,null,"ClearAll"]
[null,null,"BorderInsideVertical",null,null,"ClearFormats"]
[null,null,"BorderLeft",null,null,"ClearContents"]
[null,null,"BorderNone",null,null,"ClearComments"]
[null,null,"BorderOutside",null,null,"SortCustomExcel"]
[null,null,"BorderRight",null,null,"SortClear"]
[null,null,"BordersAll",null,null,"FilterReapply"]
[null,null,"BordersGallery",null,null,"FindDialogExcel"]
[null,null,"BordersMoreDialog",null,null,"ReplaceDialog"]
[null,null,"BordersShadingDialogWord",null,null,"GoTo"]
[null,null,"BorderThickBottom",null,null,"GoToSpecial"]
[null,null,"BorderThickOutside",null,null,"GoToFormulas"]
[null,null,"BorderTop",null,null,"GoToComments"]
[null,null,"BorderTopAndBottom",null,null,"GoToConditionalFormatting"]
[null,null,"BorderTopAndDoubleBottom",null,null,"GoToConstants"]
[null,null,"BorderTopAndThickBottom",null,null,"GoToDataValidation"]
[null,null,"Breakpoint",null,null,"PivotTableInsert"]
[null,null,"BrightnessAndContrastEdit",null,null,"PivotChartInsert"]
[null,null,"BrightnessLess",null,null,"TableInsertExcel"]
[null,null,"BrightnessMore",null,null,"PictureInsertFromFile"]
[null,null,"BrowseNext",null,null,"SmartArtInsert"]
[null,null,"BrowsePrevious",null,null,"ChartTypeAllInsertDialog"]
[null,null,"BrowseSelector",null,null,"HyperlinkInsert"]
[null,null,"BuildingBlocksCreateTableOfAuthorities",null,null,"HeaderFooterInsert"]
[null,null,"BuildingBlocksSaveCoverPage",null,null,"SignatureLineInsert"]
[null,null,"BuildingBlocksSaveEquation",null,null,"SignatureLineMenuItemInsert"]
[null,null,"Bullets",null,null,"SignatureServicesAdd"]
[null,null,"BusinessCardInsertMenu",null,null,"OleObjectctInsert"]
[null,null,"BusinessFormWizard",null,null,"SymbolInsert"]
[null,null,"C",null,null,"BarcodeInsert"]
[null,null,"CacheListData",null,null,"LabelInsert"]
[null,null,"CalculateFull",null,null,"ThemeSearchOfficeOnline"]
[null,null,"CalculateSheet",null,null,"ThemeBrowseForThemes"]
[null,null,"Calculator",null,null,"ThemeSaveCurrent"]
[null,null,"CalloutOptions",null,null,"ThemeColorsCreateNew"]
[null,null,"Camera",null,null,"ThemeFontsCreateNew"]
[null,null,"CancelRequest",null,null,"MarginsCustomMargins"]
[null,null,"CaptionInsert",null,null,"PageSizeMorePaperSizesDialogExcel"]
[null,null,"CategoryCollapse",null,null,"PrintAreaSetPrintArea"]
[null,null,"CDAudioStartTime",null,null,"PrintAreaClearPrintArea"]
[null,null,"CDAudioStartTrack",null,null,"PrintAreaAddToPrintArea"]
[null,null,"CDAudioStopTime",null,null,"PageBreakInsertExcel"]
[null,null,"CDAudioStopTrack",null,null,"PageBreakRemove"]
[null,null,"CellAlignmentOptions",null,null,"PageBreaksResetAll"]
[null,null,"CellsDelete",null,null,"SheetBackground"]
[null,null,"CellsInsertDialog",null,null,"PrintTitles"]
[null,null,"CellStyleNew",null,null,"PageScaleToFitOptionsDialog"]
[null,null,"CellStylesGallery",null,null,"ObjectBringToFront"]
[null,null,"CellStylesMerge",null,null,"ObjectBringForward"]
[null,null,"ChangeBinding",null,null,"ObjectSendToBack"]
[null,null,"ChangeCaseDialogClassic",null,null,"ObjectSendBackward"]
[null,null,"ChangesDiscardAndRefresh",null,null,"ObjectsAlignLeft"]
[null,null,"ChangeStylesMenu",null,null,"ObjectsAlignCenterHorizontal"]
[null,null,"CharacterBorder",null,null,"ObjectsAlignRight"]
[null,null,"CharacterCodeToggle",null,null,"ObjectsAlignTop"]
[null,null,"CharacterShading",null,null,"ObjectsAlignMiddleVertical"]
[null,null,"Chart3DBarChart",null,null,"ObjectsAlignBottom"]
[null,null,"Chart3DColumnChart",null,null,"AlignDistributeHorizontallyClassic"]
[null,null,"Chart3DConeChart",null,null,"AlignDistributeVerticallyClassic"]
[null,null,"Chart3DPieChart",null,null,"ObjectsGroup"]
[null,null,"ChartAreaChart",null,null,"ObjectsRegroup"]
[null,null,"ChartAxes",null,null,"ObjectsUngroup"]
[null,null,"ChartAxisTitles",null,null,"ObjectRotationOptionsDialog"]
[null,null,"ChartDataLabel",null,null,"FunctionWizard"]
[null,null,"ChartDataTable",null,null,"NameManager"]
[null,null,"ChartDepthAxis",null,null,"NameDefine"]
[null,null,"ChartDepthAxisTitle",null,null,"NamesApply"]
[null,null,"ChartDepthGridlines",null,null,"NamePasteName"]
[null,null,"ChartEditDataSource",null,null,"NameCreateFromSelection"]
[null,null,"ChartErrorBars",null,null,"TracePrecedents"]
[null,null,"ChartFloor",null,null,"TraceDependents"]
[null,null,"ChartGridlines",null,null,"TraceRemoveAllArrows"]
[null,null,"ChartInsert",null,null,"TracePrecedentsRemoveArrows"]
[null,null,"ChartLayoutGallery",null,null,"TraceDependentRemoveArrows"]
[null,null,"ChartLegend",null,null,"ErrorChecking"]
[null,null,"ChartLines",null,null,"TraceError"]
[null,null,"ChartMoreElement",null,null,"FormulaEvaluate"]
[null,null,"ChartPlacement",null,null,"CalculateNow"]
[null,null,"ChartPlotArea",null,null,"CalculateSheet"]
[null,null,"ChartPrimaryHorizontalAxisTitle",null,null,"GetExternalDataFromAccess"]
[null,null,"ChartPrimaryHorizontalGridlines",null,null,"GetExternalDataFromWeb"]
[null,null,"ChartPrimaryVerticalAxisTitle",null,null,"GetExternalDataFromText"]
[null,null,"ChartPrimaryVerticalGridlines",null,null,"GetExternalDataExistingConnections"]
[null,null,"ChartRadarChart",null,null,"RefreshAll"]
[null,null,"ChartRefresh",null,null,"Refresh"]
[null,null,"ChartResetToMatchStyle",null,null,"RefreshStatus"]
[null,null,"ChartSaveTemplates",null,null,"RefreshCancel"]
[null,null,"ChartSecondaryHorizontalAxis",null,null,"ConnectionProperties"]
[null,null,"ChartSecondaryHorizontalAxisTitle",null,null,"Connections"]
[null,null,"ChartSecondaryVerticalAxis",null,null,"DataRangeProperties"]
[null,null,"ChartSecondaryVerticalAxisTitle",null,null,"EditLinks"]
[null,null,"ChartSecondaryVerticalGridlines",null,null,"SortDialog"]
[null,null,"ChartShowData",null,null,"AdvancedFilterDialog"]
[null,null,"ChartStylesGallery",null,null,"ConvertTextToTable"]
[null,null,"ChartSwitchRowColumn",null,null,"RemoveDuplicates"]
[null,null,"ChartTitle",null,null,"DataValidation"]
[null,null,"ChartTrendline",null,null,"DataValidationCircleInvalid"]
[null,null,"ChartTypeAllInsertDialog",null,null,"DataValidationClearValidationCircles"]
[null,null,"ChartTypeOtherInsertGallery",null,null,"Consolidate"]
[null,null,"ChartUpDownBars",null,null,"ScenarioManager"]
[null,null,"ChartWall",null,null,"GoalSeek"]
[null,null,"CheckNames",null,null,"DataTable"]
[null,null,"ChineseTranslationDialog",null,null,"OutlineGroup"]
[null,null,"ChooseInfoPathForm",null,null,"OutlineAuto"]
[null,null,"CircularReferences",null,null,"OutlineUngroup"]
[null,null,"CitationInsert",null,null,"OutlineClear"]
[null,null,"CitationMark",null,null,"OutlineSubtotals"]
[null,null,"Clear",null,null,"OutlineShowDetail"]
[null,null,"ClearFormats",null,null,"OutlineHideDetail"]
[null,null,"ClearFormatting",null,null,"Thesaurus"]
[null,null,"ClipArtInsert",null,null,"TranslationPane"]
[null,null,"Club",null,null,"HangulHanjaConversion"]
[null,null,"CodeEdit",null,null,"ReviewNewComment"]
[null,null,"Coffee",null,null,"ReviewDeleteComment"]
[null,null,"CollapseAll",null,null,"ReviewPreviousComment"]
[null,null,"ColonSign",null,null,"ReviewNextComment"]
[null,null,"ColumnsDialog",null,null,"ReviewShowOrHideComment"]
[null,null,"ColumnWidth",null,null,"ReviewShareWorkbook"]
[null,null,"ComAddInsDialog",null,null,"ReviewProtectAndShareWorkbook"]
[null,null,"CombineCharacters",null,null,"ReviewAllowUsersToEditRanges"]
[null,null,"CommaSign",null,null,"ReviewHighlightChanges"]
[null,null,"CommaStyle",null,null,"ReviewAcceptOrRejectChangeDialog"]
[null,null,"ConditionalFormattingAboveAverage",null,null,"InkingStart"]
[null,null,"ConditionalFormattingBelowAverage",null,null,"ViewCustomViews"]
[null,null,"ConditionalFormattingBottomNItems",null,null,"ZoomDialog"]
[null,null,"ConditionalFormattingBottomNPercent",null,null,"ZoomCurrent100"]
[null,null,"ConditionalFormattingClearMenu",null,null,"ZoomToSelection"]
[null,null,"ConditionalFormattingHighlightBetween",null,null,"WindowNew"]
[null,null,"ConditionalFormattingHighlightCellsMenu",null,null,"WindowsArrangeAll"]
[null,null,"ConditionalFormattingHighlightCompareColumns",null,null,"WindowHide"]
[null,null,"ConditionalFormattingHighlightDateOccuring",null,null,"WindowUnhide"]
[null,null,"ConditionalFormattingHighlightDuplicateValues",null,null,"WindowResetPosition"]
[null,null,"ConditionalFormattingHighlightEqualTo",null,null,"WindowSaveWorkspace"]
[null,null,"ConditionalFormattingHighlightGreaterThan",null,null,"PlayMacro"]
[null,null,"ConditionalFormattingHighlightLessThan",null,null,"MacroRecord"]
[null,null,"ConditionalFormattingHighlightTextContaining",null,null,"VisualBasic"]
[null,null,"ConditionalFormattingNewRule",null,null,"MacroPlay"]
[null,null,"ConditionalFormattingsManage",null,null,"MacroSecurity"]
[null,null,"ConditionalFormattingTopNItems",null,null,"ControlProperties"]
[null,null,"ConditionalFormattingTopNPercent",null,null,"ViewCode"]
[null,null,"CondolatoryEvent",null,null,"RunDialog"]
[null,null,"CongratulatoryEvent",null,null,"XmlMapProperties"]
[null,null,"Connections",null,null,"XmlExpansionPacksExcel"]
[null,null,"Consolidate",null,null,"XmlDataRefresh"]
[null,null,"ConstrainNumeric",null,null,"XmlImport"]
[null,null,"ContactPictureMenu",null,null,"XmlExport"]
[null,null,"ContactSendMenu",null,null,"DocumentPanelTemplate"]
[null,null,"ContactWebPage",null,null,"PageSetupPageDialog"]
[null,null,"ContentControlBuildingBlockGallery",null,null,"PageNext"]
[null,null,"ContentControlComboBox",null,null,"PagePrevious"]
[null,null,"ContentControlDate",null,null,"PrintPreviewClose"]
[null,null,"ContentControlDropDownList",null,null,"Help"]
[null,null,"ContentControlPicture",null,null,"WindowMinimize"]
[null,null,"ContentControlRichText",null,null,"WindowRestore"]
[null,null,"ContentControlsGroup",null,null,"WindowClose"]
[null,null,"ContentControlsUngroup",null,null,"SplitCells"]
[null,null,"ContentControlText",null,null,"SortDialogClassic"]
[null,null,"ContentsAndIndex",null,null,"FreezePanes"]
[null,null,"ContextHelp",null,null,"PivotTableReport"]
[null,null,"ContrastLess",null,null,"PageBreakInsertOrRemove"]
[null,null,"ContrastMore",null,null,"EqualSign"]
[null,null,"ControlActiveX",null,null,"Repeat"]
[null,null,"ControlAdvancedProperties",null,null,"AutoFilterClassic"]
[null,null,"ControlAlignToGrid",null,null,"AutoFormatDialog"]
[null,null,"ControlBoundObjectFrame",null,null,"GetExternalDataImportClassic"]
[null,null,"ControlLayoutRemove",null,null,"BrightnessMore"]
[null,null,"ControlLayoutStacked",null,null,"ContrastMore"]
[null,null,"ControlLayoutTabular",null,null,"LightShading"]
[null,null,"ControlLine",null,null,"AddInManager"]
[null,null,"ControlLineColorPicker",null,null,"StylesDialogClassic"]
[null,null,"ControlLogo",null,null,"EditQuery"]
[null,null,"ControlMarginsGallery",null,null,"PasteFormatting"]
[null,null,"ControlPaddingGallery",null,null,"FilePermission"]
[null,null,"ControlPage",null,null,"PropertySheet"]
[null,null,"ControlSetControlDefaults",null,null,"ContrastLess"]
[null,null,"ControlsGallery",null,null,"BrightnessLess"]
[null,null,"ControlSpecialEffectChiseled",null,null,"FileSaveAsWebPage"]
[null,null,"ControlSpecialEffectEtched",null,null,"DataFormExcel"]
[null,null,"ControlSpecialEffectFlat",null,null,"TableSelectVisibleCells"]
[null,null,"ControlSpecialEffectRaised",null,null,"ObjectRotateLeft90"]
[null,null,"ControlSpecialEffectShadowed",null,null,"Camera"]
[null,null,"ControlSpecialEffectSunken",null,null,"ObjectSetShapeDefaults"]
[null,null,"ControlSubFormReport",null,null,"PlusSign"]
[null,null,"ControlTabControl",null,null,"DatabaseQueryNew"]
[null,null,"ControlTitle",null,null,"Calculator"]
[null,null,"ControlToggleButton",null,null,"MinusSign"]
[null,null,"ControlToolboxOutlook",null,null,"ActiveXButton"]
[null,null,"ControlUnboundObjectFrame",null,null,"FormControlButton"]
[null,null,"ConvertDatabaseFormat",null,null,"WebPagePreview"]
[null,null,"ConvertTableToText",null,null,"BorderInsideHorizontal"]
[null,null,"ConvertTextToTable",null,null,"ZoomOut"]
[null,null,"ConvertToSmartArt",null,null,"SpeakCells"]
[null,null,"Copy",null,null,"ZoomIn"]
[null,null,"CopyFolder",null,null,"BorderInside"]
[null,null,"CopyToFolder",null,null,"DarkShading"]
[null,null,"CopyToPersonalCalendar",null,null,"SelectCurrentRegion"]
[null,null,"CopyToPersonalContacts",null,null,"DivisionSign"]
[null,null,"CopyToPersonalTaskList",null,null,"ObjectFlipHorizontal"]
[null,null,"CoverPageInsertGallery",null,null,"MultiplicationSign"]
[null,null,"CoverPageRemove",null,null,"BorderInsideVertical"]
[null,null,"CreateClassModule",null,null,"CheckForUpdates"]
[null,null,"CreateDiagram",null,null,"SpeakStop"]
[null,null,"CreateEmail",null,null,"ReviewSendForReview"]
[null,null,"CreateForm",null,null,"WebGoBack"]
[null,null,"CreateFormBlankForm",null,null,"ObjectRotateFree"]
[null,null,"CreateFormInDesignView",null,null,"WordArtVerticalText"]
[null,null,"CreateFormMoreFormsGallery",null,null,"ObjectNudgeLeft"]
[null,null,"CreateFormPivotChart",null,null,"FormControlListBox"]
[null,null,"CreateFormSplitForm",null,null,"ParenthesisRight"]
[null,null,"CreateFormWithMultipleItems",null,null,"ParenthesisLeft"]
[null,null,"CreateHandoutsInWord",null,null,"FormControlComboBox"]
[null,null,"CreateLabels",null,null,"OutlookTaskCreate"]
[null,null,"CreateMacro",null,null,"ObjectRotateRight90"]
[null,null,"CreateMailRule",null,null,"ListSynchronize"]
[null,null,"CreateMap",null,null,"ReviewReplyWithChanges"]
[null,null,"CreateModule",null,null,"FormControlRadioButton"]
[null,null,"CreateQueryFromWizard",null,null,"FormControlCheckBox"]
[null,null,"CreateQueryInDesignView",null,null,"ActiveXCheckBox"]
[null,null,"CreateReport",null,null,"BorderDiagonalUp"]
[null,null,"CreateReportBlankReport",null,null,"FileUpdate"]
[null,null,"CreateReportFromWizard",null,null,"PrivacyOptionsDialog"]
[null,null,"CreateReportInDesignView",null,null,"ObjectNudgeDown"]
[null,null,"CreateShortcutMenuFromMacro",null,null,"ObjectNudgeRight"]
[null,null,"CreateStoredProcedure",null,null,"ObjectFlipVertical"]
[null,null,"CreateTable",null,null,"FormControlSpinner"]
[null,null,"CreateTableInDesignView",null,null,"ActiveXComboBox"]
[null,null,"CreateTableTemplatesGallery",null,null,"VerticallyDistributed"]
[null,null,"CreateTableUsingSharePointListsGallery",null,null,"ActiveXTextBox"]
[null,null,"CrossReferenceInsert",null,null,"FormControlLabel"]
[null,null,"CustomActionsMenu",null,null,"ActiveXListBox"]
[null,null,"Cut",null,null,"MoreControlsDialog"]
[null,null,"D",null,null,"FormControlGroupBox"]
[null,null,"DarkShading",null,null,"ChangesDiscardAndRefresh"]
[null,null,"DatabaseAccessBackEnd",null,null,"FormControlScrollBar"]
[null,null,"DatabaseAnalyzePerformance",null,null,"ObjectNudgeUp"]
[null,null,"DatabaseAnalyzeTable",null,null,"ActiveXImage"]
[null,null,"DatabaseCopyDatabaseFile",null,null,"ActiveXLabel"]
[null,null,"DatabaseDocumenter",null,null,"ActiveXSpinButton"]
[null,null,"DatabaseEncodeDecode",null,null,"ActiveXRadioButton"]
[null,null,"DatabaseInsert",null,null,"FileCloseAll"]
[null,null,"DatabaseLinedTableManager",null,null,"ContactUs"]
[null,null,"DatabaseMakeMdeFile",null,null,"WebGoForward"]
[null,null,"DatabaseMoveToSharePoint",null,null,"BorderDiagonalDown"]
[null,null,"DatabaseObjectDependencies",null,null,"QueryParameters"]
[null,null,"DatabasePartialReplica",null,null,"DollarSign"]
[null,null,"DatabasePermissions",null,null,"ActiveXScrollBar"]
[null,null,"DatabasePermissionsMenu",null,null,"ObjectsMultiSelect"]
[null,null,"DatabaseRelationships",null,null,"ReviewEndReview"]
[null,null,"DatabaseSetLogonSecurity",null,null,"ExchangeFolder"]
[null,null,"DatabaseSqlServer",null,null,"OutlineSymbolsShowHide"]
[null,null,"DatabaseSwitchboardManager",null,null,"SelectAll"]
[null,null,"DatabaseUserAndGroupAccounts",null,null,"ReadOnly"]
[null,null,"DatabaseUserLevelSecurityWizard",null,null,"TabOrder"]
[null,null,"DataFormAddRecord",null,null,"ActiveXToggleButton"]
[null,null,"DataFormDeleteRecord",null,null,"FormControlCombinationDropDownEdit"]
[null,null,"DataFormSource",null,null,"CodeEdit"]
[null,null,"DataGraphicIconSet",null,null,"CompareAndMergeWorkbooks"]
[null,null,"DataOptionsMenu",null,null,"ExponentiationSign"]
[null,null,"DataRefreshAll",null,null,"PrintListRange"]
[null,null,"DatasheetColumnLookup",null,null,"FormControlEditBox"]
[null,null,"DatasheetColumnRename",null,null,"PercentSign"]
[null,null,"DatasheetNewField",null,null,"FormControlCombinationListEdit"]
[null,null,"DatasheetView",null,null,"CommaSign"]
[null,null,"DataSourceCatalogServerScript",null,null,"DrawingCanvasExpand"]
[null,null,"DataValidation",null,null,"SendCopySendNow"]
[null,null,"DataValidationCircleInvalid",null,null,"DrawingCanvasFit"]
[null,null,"DataValidationClearValidationCircles",null,null,"FilePublishAsWebPage"]
[null,null,"DateAndTimeInsert",null,null,"InkCopyAsText"]
[null,null,"DecimalsDecrease",null,null,"ColonSign"]
[null,null,"DecimalsIncrease",null,null,"ConstrainNumeric"]
[null,null,"DeclineInvitation",null,null,"ComAddInsDialog"]
[null,null,"DefaultView",null,null,"WebOptionsDialog"]
[null,null,"DefinedPrintStyle",null,null,"CalculateFull"]
[null,null,"DefinePrintStyles",null,null,"SendCopySelectNames"]
[null,null,"DelayDeliveryOutlook",null,null,"DrawingCanvasResize"]
[null,null,"Delete",null,null,"FontColorCycle"]
[null,null,"DesignAFormOutlook",null,null,"ChartInsert"]
[null,null,"DesignMode",null,null,"BulletsAndNumberingBulletsDialog"]
[null,null,"DesignXml",null,null,"QuickAccessToolbarCustomization"]
[null,null,"DiagramAutoLayoutClassic",null,null,"AlternativeText"]
[null,null,"DiagramChangeToMenuClassic",null,null,"AdvancedFileProperties"]
[null,null,"DiagramCycleInsertClassic",null,null,"_3DEffectColorPickerMoreClassic"]
[null,null,"DiagramPyramidInsertClassic",null,null,"_3DTiltLeftClassic"]
[null,null,"DiagramRadialInsertClassic",null,null,"_3DTiltUpClassic"]
[null,null,"DiagramReverseClassic",null,null,"_3DTiltDownClassic"]
[null,null,"DiagramShapeInsertClassic",null,null,"_3DTiltRightClassic"]
[null,null,"DiagramShapeMoveBackwardClassic",null,null,"ObjectShadowColorMoreColorsDialog"]
[null,null,"DiagramShapeMoveForwardClassic",null,null,"ShadowNudgeLeftClassic"]
[null,null,"DiagramStylesClassic",null,null,"ShadowNudgeUpClassic"]
[null,null,"DiagramTargetInsertClassic",null,null,"ShadowNudgeDownClassic"]
[null,null,"DiagramVennDiagramInsertClassic",null,null,"ShadowNudgeRightClassic"]
[null,null,"Diamond",null,null,"SmartArtAddShape"]
[null,null,"DirectRepliesTo",null,null,"SmartArtAddShapeAfter"]
[null,null,"DisplayRuler",null,null,"SmartArtAddShapeBefore"]
[null,null,"DistributionListAddNewMember",null,null,"SmartArtAddShapeAbove"]
[null,null,"DistributionListRemoveMember",null,null,"SmartArtAddShapeBelow"]
[null,null,"DistributionListSelectMembers",null,null,"SmartArtAddAssistant"]
[null,null,"DistributionListUpdateMembers",null,null,"SmartArtAddBullet"]
[null,null,"DivisionSign",null,null,"SmartArtOrganizationChartStandard"]
[null,null,"DocumentPanelTemplate",null,null,"SmartArtOrganizationChartBoth"]
[null,null,"DollarSign",null,null,"SmartArtOrganizationChartLeftHanging"]
[null,null,"DoubleBottomBorder",null,null,"SmartArtOrganizationChartRightHanging"]
[null,null,"DoubleStrikethrough",null,null,"SmartArtPromote"]
[null,null,"DrawingCanvasExpand",null,null,"SmartArtDemote"]
[null,null,"DrawingCanvasFit",null,null,"SmartArtMoreLayoutsDialog"]
[null,null,"DrawingCanvasScale",null,null,"SmartArtResetGraphic"]
[null,null,"DrawingObjectFormatDialog",null,null,"SmartArtLargerShape"]
[null,null,"DrillInto",null,null,"SmartArtSmallerShape"]
[null,null,"DrillOut",null,null,"ObjectFillMoreColorsDialog"]
[null,null,"DropCapOptionsDialog",null,null,"ObjectPictureFill"]
[null,null,"DuplicateSelectedSlides",null,null,"ShapeFillMoreGradientsDialog"]
[null,null,"E",null,null,"MoreTextureOptions"]
[null,null,"EastAsianEditingMarks",null,null,"ObjectBorderOutlineColorMoreColorsDialog"]
[null,null,"EditBusinessCard",null,null,"LineStylesDialog"]
[null,null,"EditCitation",null,null,"ArrowsMore"]
[null,null,"EditComposePage",null,null,"_3DBevelOptionsDialog"]
[null,null,"EditQuery",null,null,"ShadowOptionsDialog"]
[null,null,"EditReadPage",null,null,"GlowColorMoreColorsDialog"]
[null,null,"EmptyTrash",null,null,"_3DRotationOptionsDialog"]
[null,null,"EncodingMenu",null,null,"WordArtClear"]
[null,null,"EndnoteInsertWord",null,null,"TextFillColorMoreColorsDialog"]
[null,null,"EndOfDocument",null,null,"TextPictureFill"]
[null,null,"EndOfLine",null,null,"TextFillMoreGradientsDialog"]
[null,null,"EnglishWritingAssistant",null,null,"TextFillMoreTextures"]
[null,null,"EnvelopeChineseDialog",null,null,"TextOutlineColorMoreColorsDialog"]
[null,null,"EnvelopesAndLabelsDialog",null,null,"TextOutlineMoreLinesDialog"]
[null,null,"EqualSign",null,null,"TextEffectsMoreShadowsDialog"]
[null,null,"EquationMatrixGallery",null,null,"TextGlowColorMoreColorsDialog"]
[null,null,"EquationOptions",null,null,"TextEffectsBevelMore3DOptionsDialog"]
[null,null,"EquationSymbolsInsertGallery",null,null,"TextEffects3DRotationOptionsDialog"]
[null,null,"ErrorChecking",null,null,"ChartChangeType"]
[null,null,"ExchangeFolder",null,null,"ChartSaveTemplates"]
[null,null,"ExponentiationSign",null,null,"ChartSwitchRowColumn"]
[null,null,"ExportExcel",null,null,"ChartEditDataSource"]
[null,null,"ExportMoreMenu",null,null,"ChartPlacement"]
[null,null,"ExportSavedExports",null,null,"ChartFormatSelection"]
[null,null,"ExportSharePointList",null,null,"ChartResetToMatchStyle"]
[null,null,"ExportTextFile",null,null,"ChartTitleOptionsDialog"]
[null,null,"ExportToAccess",null,null,"ChartPrimaryHorizontalAxisTitleOptionsDialog"]
[null,null,"ExportToVCardFile",null,null,"ChartPrimaryVerticalAxisTitleOptionsDialog"]
[null,null,"ExportWord",null,null,"ChartSecondaryHorizontalAxisTitleOptionsDialog"]
[null,null,"F",null,null,"ChartSecondaryVerticalAxisTitleOptionsDialog"]
[null,null,"FieldChooser",null,null,"ChartDepthAxisTitleOptionsDialog"]
[null,null,"FieldCodes",null,null,"ChartLegendOptionsDialogDialog"]
[null,null,"FieldInsert",null,null,"ChartDataLabelDialog"]
[null,null,"FieldList",null,null,"ChartDataTableOptionsDialog"]
[null,null,"FieldShading",null,null,"ChartPrimaryHorizontalAxisOptionsDialog"]
[null,null,"FieldsMenu",null,null,"ChartPrimaryVerticalAxisOptionsDialog"]
[null,null,"FieldsUpdate",null,null,"ChartSecondaryHorizontalAxisOption"]
[null,null,"FileBackupDatabase",null,null,"ChartSecondaryVerticalAxisOptionsDialog"]
[null,null,"FileBackUpSqlDatabase",null,null,"ChartDepthAxisOptionsDialog"]
[null,null,"FileCheckIn",null,null,"ChartPrimaryHorizontalGridlinesOptionsDialog"]
[null,null,"FileCheckOut",null,null,"ChartPrimaryVerticalGridlinesOptionsDialog"]
[null,null,"FileCheckOutDiscard",null,null,"ChartSecondaryHorizontalGridlinesOptionsDialog"]
[null,null,"FileClose",null,null,"ChartSecondaryVerticalGridlinesOptionsDialog"]
[null,null,"FileCompactAndRepairDatabase",null,null,"ChartDepthGridlinesOptionsDialog"]
[null,null,"FileCompatibilityChecker",null,null,"ChartPlotAreaOptionsDialog"]
[null,null,"FileCompatibilityCheckerPowerPoint",null,null,"ChartWallOptionsDialog"]
[null,null,"FileCompatibilityCheckerWord",null,null,"ChartFloorOptionsDialog"]
[null,null,"FileCreateDocumentWorkspace",null,null,"Chart3DView"]
[null,null,"FileDocumentEncrypt",null,null,"ChartTrendlineOptionsDialog"]
[null,null,"FileDocumentInspect",null,null,"ChartUpDownBarsOptionsDialog"]
[null,null,"FileDocumentManagementInformation",null,null,"ChartErrorBarsOptionsDialog"]
[null,null,"FileDropSqlDatabase",null,null,"ShapeConvertToFreeform"]
[null,null,"FileExcelServicesOptions",null,null,"PictureCorrectionsDialog"]
[null,null,"FileExit",null,null,"PictureRecolorMoreColorsDialog"]
[null,null,"FileFind",null,null,"PicturesCompress"]
[null,null,"FileInternetFax",null,null,"PictureChange"]
[null,null,"FileLinksToFiles",null,null,"PictureReset"]
[null,null,"FileManageMenu",null,null,"PivotTableOptions"]
[null,null,"FileMarkAsFinal",null,null,"PivotTableShowPages"]
[null,null,"FileNew",null,null,"PivotTableFieldSettings"]
[null,null,"FileNewBlogPost",null,null,"PivotTableExpandField"]
[null,null,"FileNewWebPage",null,null,"PivotCollapseField"]
[null,null,"FileOpen",null,null,"PivotTableGroupSelection"]
[null,null,"FilePackageAndSign",null,null,"PivotTableGroupField"]
[null,null,"FilePackageForCD",null,null,"PivotTableChangeDataSource"]
[null,null,"FilePermissionRestrictMenu",null,null,"PivotClearAll"]
[null,null,"FilePermissionView",null,null,"PivotClearFilters"]
[null,null,"FilePrepareMenu",null,null,"PivotTableSelectLabelAndData"]
[null,null,"FilePrint",null,null,"PivotTableSelectData"]
[null,null,"FilePrintPreview",null,null,"PivotTableSelectLabel"]
[null,null,"FilePrintQuick",null,null,"PivotTableSelectEntireTable"]
[null,null,"FileProperties",null,null,"PivotTableMove"]
[null,null,"FilePublishAsWebPage",null,null,"PivotChartInsertClassic"]
[null,null,"FilePublishExcelServices",null,null,"PivotTableFieldInsert"]
[null,null,"FilePublishSlides",null,null,"PivotTableCalculatedItem"]
[null,null,"FilePublishToSharePoint",null,null,"PivotTableSolveOrder"]
[null,null,"FileSave",null,null,"PivotTableListFormulas"]
[null,null,"FileSaveAs",null,null,"PivotTableOlapPropertyFields"]
[null,null,"FileSaveAsAccess2000",null,null,"PivotTableOlapOffline"]
[null,null,"FileSaveAsAccess2002_2003",null,null,"PivotTableOlapConvertToFormulas"]
[null,null,"FileSaveAsAccess2007",null,null,"PivotTableSubtotalsDoNotShow"]
[null,null,"FileSaveAsCurrentFileFormat",null,null,"PivotTableSubtotalsOnBottom"]
[null,null,"FileSaveAsExcel97_2003",null,null,"PivotTableSubtotalsOnTop"]
[null,null,"FileSaveAsExcelXlsb",null,null,"PivotTableGrandTotalsOffForRowsAndColumns"]
[null,null,"FileSaveAsExcelXlsx",null,null,"PivotTableGrandTotalsOnForRowsAndColumns"]
[null,null,"FileSaveAsExcelXlsxMacro",null,null,"PivotTableGrandTotalsOnForRowsOnly"]
[null,null,"FileSaveAsPdfOrXps",null,null,"PivotTableGrandTotalsOnForColumnsOnly"]
[null,null,"FileSaveAsPowerPoint97_2003",null,null,"PivotTableLayoutShowInCompactForm"]
[null,null,"FileSaveAsPowerPointPpsx",null,null,"PivotTableLayoutShowInOutlineForm"]
[null,null,"FileSaveAsPowerPointPptx",null,null,"PivotTableLayoutShowInTabularForm"]
[null,null,"FileSaveAsWebPage",null,null,"PivotTableBlankRowsInsert"]
[null,null,"FileSaveAsWord97_2003",null,null,"PivotTableBlankRowsRemove"]
[null,null,"FileSaveAsWordDocx",null,null,"TableStyleClear"]
[null,null,"FileSaveAsWordDotx",null,null,"HeaderFooterPageNumberInsertExcel"]
[null,null,"FileSaveToDocumentManagementServer",null,null,"HeaderFooterNumberOfPagesInsert"]
[null,null,"FileSendAsAttachment",null,null,"HeaderFooterCurrentDate"]
[null,null,"FileSendMenu",null,null,"HeaderFooterCurrentTimeInsert"]
[null,null,"FileServerTasksMenu",null,null,"HeaderFooterFilePathInsert"]
[null,null,"FileServerTransferDatabase",null,null,"HeaderFooterFileNameInsert"]
[null,null,"FileStartWorkflow",null,null,"HeaderFooterSheetNameInsert"]
[null,null,"FileUpdate",null,null,"HeaderFooterPictureInsert"]
[null,null,"FileViewDigitalSignatures",null,null,"HeaderFooterFormatPicture"]
[null,null,"FileWorkflowTasks",null,null,"GoToHeader"]
[null,null,"FillDown",null,null,"GoToFooter"]
[null,null,"FillLeft",null,null,"TableResize"]
[null,null,"FillMenu",null,null,"TableSummarizeWithPivot"]
[null,null,"FillRight",null,null,"TableConvertToRange"]
[null,null,"FillUp",null,null,"TableExportTableToSharePointList"]
[null,null,"Filter",null,null,"TableExportTableToVisioPivotDiagram"]
[null,null,"FilterAdvancedByForm",null,null,"TableOpenInBrowser"]
[null,null,"FilterAdvancedMenu",null,null,"TableUnlinkExternalData"]
[null,null,"FilterByResource",null,null,"InkDeleteAllInk"]
[null,null,"FilterBySelection",null,null,"InkColorMoreColorsDialog"]
[null,null,"FilterClearAllFilters",null,null,"InkToolsClose"]
[null,null,"FilterReapply"]
[null,null,"FilterToggleFilter"]
[null,null,"FindDialog"]
[null,null,"FindNext"]
[null,null,"FindRelatedMenu"]
[null,null,"First10RecordsPreview"]
[null,null,"Fish"]
[null,null,"Folder"]
[null,null,"FontAlternateFillBackColorPicker"]
[null,null,"FontConditionalFormatting"]
[null,null,"FontDialog"]
[null,null,"FontDialogPowerPoint"]
[null,null,"FontSchemes"]
[null,null,"FontSizeDecrease"]
[null,null,"FontSizeIncrease"]
[null,null,"FontsReplaceFonts"]
[null,null,"FooterInsertGallery"]
[null,null,"FootnoteEndnoteDialog"]
[null,null,"FootnoteInsert"]
[null,null,"FootnoteNextWord"]
[null,null,"FootnotesEndnotesShow"]
[null,null,"FormatAsTableGallery"]
[null,null,"FormatCellsFontDialog"]
[null,null,"FormatCellsMenu"]
[null,null,"FormatCellsNumberDialog"]
[null,null,"FormatPainter"]
[null,null,"FormatPictureOrShapeDialogClassic"]
[null,null,"FormattingRequiredField"]
[null,null,"FormattingUnique"]
[null,null,"FormControlCheckBox"]
[null,null,"FormControlCombinationDropDownEdit"]
[null,null,"FormControlCombinationListEdit"]
[null,null,"FormControlEditBox"]
[null,null,"FormControlGroupBox"]
[null,null,"FormControlLabel"]
[null,null,"FormHeaderOrFooterShowHide"]
[null,null,"FormPublish"]
[null,null,"FormRegionMenu"]
[null,null,"FormsMenu"]
[null,null,"FormulaEvaluate"]
[null,null,"FormulaMoreFunctionsMenu"]
[null,null,"ForwardAsBusinessCard"]
[null,null,"ForwardToMobile"]
[null,null,"FrameCreateAbove"]
[null,null,"FrameCreateBelow"]
[null,null,"FrameCreateLeft"]
[null,null,"FrameCreateRight"]
[null,null,"FrameDelete"]
[null,null,"FramePropertiesDialog"]
[null,null,"FreezePanes"]
[null,null,"FrontPageToggleBookmark"]
[null,null,"FunctionsCubeInsertGallery"]
[null,null,"FunctionsDateTimeInsertGallery"]
[null,null,"FunctionsEngineeringInsertGallery"]
[null,null,"FunctionsFinancialInsertGallery"]
[null,null,"FunctionsInformationInsertGallery"]
[null,null,"FunctionsLogicalInsertGallery"]
[null,null,"FunctionsLookupReferenceInsertGallery"]
[null,null,"FunctionsMathTrigInsertGallery"]
[null,null,"FunctionsRecentlyUsedtInsertGallery"]
[null,null,"FunctionsStatisticalInsertGallery"]
[null,null,"FunctionsTextInsertGallery"]
[null,null,"FunctionWizard"]
[null,null,"G"]
[null,null,"GetExternalDataFromText"]
[null,null,"GetExternalDataFromWeb"]
[null,null,"GetExternalDataImportClassic"]
[null,null,"GoLeftToRight"]
[null,null,"GoLtrDown"]
[null,null,"GoLtrFocus"]
[null,null,"GoLtrHover"]
[null,null,"GoRtl"]
[null,null,"GoRtlDown"]
[null,null,"GoRtlFocus"]
[null,null,"GoRtlHover"]
[null,null,"GoTo"]
[null,null,"GoToHeader"]
[null,null,"GoToMail"]
[null,null,"GoToNewRecord"]
[null,null,"GoToTableOfContents"]
[null,null,"GradientGallery"]
[null,null,"Grammar"]
[null,null,"GridlinesGallery"]
[null,null,"GridSettings"]
[null,null,"GridShowHide"]
[null,null,"GroupAddInsCustomToolbars"]
[null,null,"GroupAddInsMenuCommands"]
[null,null,"GroupAddInsToolbarCommands"]
[null,null,"GroupBlogPublish"]
[null,null,"GroupChartLocation"]
[null,null,"GroupDrawing"]
[null,null,"Grouping"]
[null,null,"GroupPivotTableLayout"]
[null,null,"GroupSmartArtQuickStyles"]
[null,null,"GroupTable"]
[null,null,"H"]
[null,null,"HandoutOrientation"]
[null,null,"HangulHanjaConversion"]
[null,null,"HappyFace"]
[null,null,"Head"]
[null,null,"HeaderFooterInsert"]
[null,null,"HeaderFooterLinkToPrevious"]
[null,null,"HeaderFooterNextSection"]
[null,null,"HeaderFooterPositionFooterFromBottom"]
[null,null,"HeaderFooterPositionHeaderFromTop"]
[null,null,"HeaderFooterPreviousSection"]
[null,null,"HeaderFooterRemoveFooterWord"]
[null,null,"HeaderFooterRemoveHeaderWord"]
[null,null,"HeaderInsertGallery"]
[null,null,"HeaderOrFooterShow"]
[null,null,"Heart"]
[null,null,"Help"]
[null,null,"HideDetails"]
[null,null,"HighImportance"]
[null,null,"HorizontalLineInsert"]
[null,null,"HorizontalSpacingDecrease"]
[null,null,"HorizontalSpacingIncrease"]
[null,null,"HyperlinkInsert"]
[null,null,"HyperlinkOpenExcel"]
[null,null,"HyperlinkRemove"]
[null,null,"HyperlinksVerify"]
[null,null,"HyphenationOptions"]
[null,null,"I"]
[null,null,"IgnoreHtmlChanges"]
[null,null,"ImagerScan"]
[null,null,"ImeDictionaryUpdate"]
[null,null,"ImexRunExport"]
[null,null,"ImexRunImport"]
[null,null,"ImportAccess"]
[null,null,"ImportExcel"]
[null,null,"ImportMoreMenu"]
[null,null,"ImportSavedImports"]
[null,null,"ImportSharePointList"]
[null,null,"ImportTextFile"]
[null,null,"ImportXmlFile"]
[null,null,"IndentClassic"]
[null,null,"IndexInsert"]
[null,null,"IndexMarkEntry"]
[null,null,"Info"]
[null,null,"InkDeleteAllInk"]
[null,null,"InkDrawingAndWriting"]
[null,null,"InkEraseMode"]
[null,null,"InkingStart"]
[null,null,"InsertAlignmentTab"]
[null,null,"InsertDialog"]
[null,null,"InsertDrawingCanvas"]
[null,null,"InterconnectDeleteCard"]
[null,null,"InterconnectNextSide"]
[null,null,"InterconnectOpen"]
[null,null,"InternationalCurrency"]
[null,null,"Italic"]
[null,null,"J"]
[null,null,"JapaneseGreetingsInsertMenu"]
[null,null,"JapanesePostcardDialog"]
[null,null,"JotInkStyle1"]
[null,null,"JotLineColor"]
[null,null,"JotShapeDiamond"]
[null,null,"JotShapeEllipse"]
[null,null,"JotShapeParallelogram"]
[null,null,"JotShapeRectangle"]
[null,null,"JunkEmailOptions"]
[null,null,"JunkEmailSafeListsMenu"]
[null,null,"JustifyHighVertical"]
[null,null,"JustifyLowVertical"]
[null,null,"JustifyMediumVertical"]
[null,null,"JustifyThaiVertical"]
[null,null,"K"]
[null,null,"L"]
[null,null,"LabelInsert"]
[null,null,"LabelsDialog"]
[null,null,"LassoSelect"]
[null,null,"LayoutOptionsDialog"]
[null,null,"LeftArrow2"]
[null,null,"LegalBlackline"]
[null,null,"LightShading"]
[null,null,"LineNumbersMenu"]
[null,null,"LineSpacing"]
[null,null,"LineStylesDialog"]
[null,null,"LinkBarCustom"]
[null,null,"ListLevelGallery"]
[null,null,"ListNumFieldInsert"]
[null,null,"ListSetNumberingValue"]
[null,null,"ListSynchronize"]
[null,null,"LoadFromQuery"]
[null,null,"Lock"]
[null,null,"LookUp"]
[null,null,"LowImportance"]
[null,null,"M"]
[null,null,"MacroArguments"]
[null,null,"MacroConditions"]
[null,null,"MacroConvertMacrosToVisualBasic"]
[null,null,"MacroDefault"]
[null,null,"MacroNames"]
[null,null,"MacroPlay"]
[null,null,"MacroRecord"]
[null,null,"MacroRecorderPause"]
[null,null,"MacroRelativeReferences"]
[null,null,"MacroShowAllActions"]
[null,null,"MagicEightBall"]
[null,null,"Magnifier"]
[null,null,"MailMergeAddressBlockInsert"]
[null,null,"MailMergeAutoCheckForErrors"]
[null,null,"MailMergeDocument"]
[null,null,"MailMergeFinishAndMergeMenu"]
[null,null,"MailMergeGoToFirstRecord"]
[null,null,"MailMergeGoToNextRecord"]
[null,null,"MailMergeGoToPreviousRecord"]
[null,null,"MailMergeGotToLastRecord"]
[null,null,"MailMergeGreetingLineInsert"]
[null,null,"MailMergeHelper"]
[null,null,"MailMergeHighlightMergeFields"]
[null,null,"MailMergeMatchFields"]
[null,null,"MailMergeMergeFieldInsert"]
[null,null,"MailMergeMergeToPrinter"]
[null,null,"MailMergeRecipientsEditList"]
[null,null,"MailMergeResultsPreview"]
[null,null,"MailMergeRules"]
[null,null,"MailMergeSelectRecipients"]
[null,null,"MailMergeSetDocumentType"]
[null,null,"MailMergeStartMailMergeMenu"]
[null,null,"MailMove"]
[null,null,"MailSelectNames"]
[null,null,"ManageReplies"]
[null,null,"MapContactAddress"]
[null,null,"MarginsAdjust"]
[null,null,"MarkAsUnread"]
[null,null,"MarkTaskComplete"]
[null,null,"MasterDocumentCreateSubdocument"]
[null,null,"MasterDocumentInsertSubdocument"]
[null,null,"MasterDocumentLockSubdocument"]
[null,null,"MasterDocumentMergeSubdocuments"]
[null,null,"MasterDocumentShow"]
[null,null,"MasterDocumentSplitSubdocuments"]
[null,null,"MasterDocumentUnlinkSubdocument"]
[null,null,"MasterNotesPageOrientation"]
[null,null,"MeetingsWorkspace"]
[null,null,"MenuPublish"]
[null,null,"MergeCells"]
[null,null,"MergeCellsAcross"]
[null,null,"MergeCenter"]
[null,null,"MergeOptions"]
[null,null,"MessageHeaderToggle"]
[null,null,"MessageNext"]
[null,null,"MessageOptions"]
[null,null,"MessagePrevious"]
[null,null,"MessageToAttendeesMenu"]
[null,null,"MicrosoftAccess"]
[null,null,"MicrosoftExcel"]
[null,null,"MicrosoftOutlook"]
[null,null,"MicrosoftPowerPoint"]
[null,null,"MicrosoftProject"]
[null,null,"MicrosoftPublisher"]
[null,null,"MicrosoftVisualFoxPro"]
[null,null,"MinusSign"]
[null,null,"ModuleInsert"]
[null,null,"MoveToFolder"]
[null,null,"MovieFromFileInsert"]
[null,null,"MoviePlay"]
[null,null,"MoviePlayAutomatically"]
[null,null,"MsnLogo"]
[null,null,"MultilevelListGallery"]
[null,null,"MultiplePages"]
[null,null,"MultiplicationSign"]
[null,null,"N"]
[null,null,"NameCreateFromSelection"]
[null,null,"NameDefine"]
[null,null,"NameDefineMenu"]
[null,null,"NameManager"]
[null,null,"NamePasteName"]
[null,null,"NameUseInFormula"]
[null,null,"NewAlert"]
[null,null,"NewContact"]
[null,null,"NewMeetingWithContact"]
[null,null,"NewMessageToContact"]
[null,null,"NewNote"]
[null,null,"NewTableStyleWord"]
[null,null,"NewTask"]
[null,null,"NewTaskForContact"]
[null,null,"Numbering"]
[null,null,"NumberingContinue"]
[null,null,"NumberingRestart"]
[null,null,"NumberInsert"]
[null,null,"O"]
[null,null,"ObjectAlignMenu"]
[null,null,"ObjectBringForward"]
[null,null,"ObjectBringToFront"]
[null,null,"ObjectEditPoints"]
[null,null,"ObjectEffectGlowGallery"]
[null,null,"ObjectEffectPresetGallery"]
[null,null,"ObjectEffectShadowGallery"]
[null,null,"ObjectEffectSoftEdgesGallery"]
[null,null,"ObjectFlipHorizontal"]
[null,null,"ObjectFlipVertical"]
[null,null,"ObjectFormatDialog"]
[null,null,"ObjectNudgeDown"]
[null,null,"ObjectNudgeLeft"]
[null,null,"ObjectNudgeRight"]
[null,null,"ObjectNudgeUp"]
[null,null,"ObjectPictureFill"]
[null,null,"ObjectRotateFree"]
[null,null,"ObjectRotateGallery"]
[null,null,"ObjectRotateLeft90"]
[null,null,"ObjectRotateRight90"]
[null,null,"ObjectsAlignBottom"]
[null,null,"ObjectsAlignCenterHorizontal"]
[null,null,"ObjectsAlignCenterInFormHorixontally"]
[null,null,"ObjectsAlignCenterInFormVertically"]
[null,null,"ObjectsAlignDistributeHorizontallyRemove"]
[null,null,"ObjectsAlignDistributeVerticallyRemove"]
[null,null,"ObjectsAlignLeft"]
[null,null,"ObjectsAlignMiddleVertical"]
[null,null,"ObjectsAlignRight"]
[null,null,"ObjectsAlignTop"]
[null,null,"ObjectsArrangeBottom"]
[null,null,"ObjectsArrangeRight"]
[null,null,"ObjectSendBackward"]
[null,null,"ObjectSendToBack"]
[null,null,"ObjectsGroup"]
[null,null,"ObjectSizeAndPositionDialog"]
[null,null,"ObjectSizeAndPropertiesDialog"]
[null,null,"ObjectSizeDialog"]
[null,null,"ObjectSizeDialogClassic"]
[null,null,"ObjectsMultiSelect"]
[null,null,"ObjectsRegroup"]
[null,null,"ObjectsSelect"]
[null,null,"ObjectsUngroup"]
[null,null,"OfficeDiagnostics"]
[null,null,"OleObjectctInsert"]
[null,null,"OmsAccountSetup"]
[null,null,"OmsChangeSlideLayoutGallery"]
[null,null,"OmsCustomizeLayout"]
[null,null,"OmsDelete"]
[null,null,"OmsForwardAsMultimediaMessage"]
[null,null,"OmsForwardAsTextMessage"]
[null,null,"OmsNewMultimediaMessage"]
[null,null,"OmsNewTextMessage"]
[null,null,"OmsPreviewPane"]
[null,null,"OmsSend"]
[null,null,"OmsSlideInsert"]
[null,null,"OpenInfopathForm"]
[null,null,"OpenStartPage"]
[null,null,"OrganizationChartInsert"]
[null,null,"OrganizationChartInsertAssistant"]
[null,null,"OrganizationChartInsertCoworker"]
[null,null,"OrganizationChartLayoutBothHanging"]
[null,null,"OrganizationChartLayoutLeftHanging"]
[null,null,"OrganizationChartLayoutRightHanging"]
[null,null,"OrganizationChartLayoutStandard"]
[null,null,"OrganizationChartSelectAllAssistants"]
[null,null,"OrganizationChartSelectAllConnectors"]
[null,null,"OrganizationChartSelectBranch"]
[null,null,"OrganizationChartSelectLevel"]
[null,null,"OrganizationOutlook"]
[null,null,"Organizer"]
[null,null,"OtherActionsMenu"]
[null,null,"OutdentClassic"]
[null,null,"OutlineCollapse"]
[null,null,"OutlineDashesGallery"]
[null,null,"OutlineDemote"]
[null,null,"OutlineDemoteToBodyText"]
[null,null,"OutlineExpand"]
[null,null,"OutlineExpandAll"]
[null,null,"OutlineGroup"]
[null,null,"OutlineHideDetail"]
[null,null,"OutlineMoveDown"]
[null,null,"OutlineMoveUp"]
[null,null,"OutlinePromote"]
[null,null,"OutlinePromoteToHeading"]
[null,null,"OutlineSettings"]
[null,null,"OutlineShowDetail"]
[null,null,"OutlineShowFirstLineOnly"]
[null,null,"OutlineShowLevel"]
[null,null,"OutlineShowTextFormatting"]
[null,null,"OutlineSubtotals"]
[null,null,"OutlineSymbolsShowHide"]
[null,null,"OutlineUngroup"]
[null,null,"OutlineWeightGallery"]
[null,null,"OutlookGears"]
[null,null,"OutlookGlobe"]
[null,null,"P"]
[null,null,"PageBreakInsertOrRemove"]
[null,null,"PageColorPicker"]
[null,null,"PageHeaderOrFooterShowHide"]
[null,null,"PageMarginsGallery"]
[null,null,"PageMenu"]
[null,null,"PageNambersInFooterInsertGallery"]
[null,null,"PageNambersInMarginsInsertGallery"]
[null,null,"PageNext"]
[null,null,"PageNumberFormat"]
[null,null,"PageNumbersInHeaderInsertGallery"]
[null,null,"PageNumbersRemove"]
[null,null,"PageOrientationGallery"]
[null,null,"PageOrientationLandscape"]
[null,null,"PageOrientationPortrait"]
[null,null,"PageOrientationPortraitLandscape"]
[null,null,"PagePrevious"]
[null,null,"PageScaleToFitOptionsDialog"]
[null,null,"PageSetupDialog"]
[null,null,"PageSetupPageDialog"]
[null,null,"PageSetupSheetDialog"]
[null,null,"PageSizeGallery"]
[null,null,"PanAndZoomWindow"]
[null,null,"PanningHand"]
[null,null,"ParagraphDialog"]
[null,null,"ParagraphDistributed"]
[null,null,"ParagraphIndentRight"]
[null,null,"ParagraphMarks"]
[null,null,"ParagraphSpaceBefore"]
[null,null,"ParagraphSpaceBeforeNone"]
[null,null,"ParagraphSpacingDecrease"]
[null,null,"ParagraphSpacingIncrease"]
[null,null,"ParenthesisLeft"]
[null,null,"ParenthesisRight"]
[null,null,"Paste"]
[null,null,"PasteApplyStyle"]
[null,null,"PasteAsHyperlink"]
[null,null,"PasteDuplicate"]
[null,null,"PasteFormatting"]
[null,null,"PasteSpecialDialog"]
[null,null,"PasteValues"]
[null,null,"PauseTimer"]
[null,null,"PenComment"]
[null,null,"PercentSign"]
[null,null,"PercentStyle"]
[null,null,"PermissionRestrict"]
[null,null,"PersonaStatusAway"]
[null,null,"PersonaStatusBusy"]
[null,null,"PersonaStatusOffline"]
[null,null,"PersonaStatusOnline"]
[null,null,"PhoneticGuideEdit"]
[null,null,"PhoneticGuideFieldShow"]
[null,null,"PhoneticGuideSettings"]
[null,null,"PhotoAlbumEdit"]
[null,null,"PhotoAlbumInsert"]
[null,null,"PickUpStyle"]
[null,null,"PictureBrightnessGallery"]
[null,null,"PictureChange"]
[null,null,"PictureContrastGallery"]
[null,null,"PictureCorrectionsDialog"]
[null,null,"PictureCrop"]
[null,null,"PictureDisassemble"]
[null,null,"PictureEffectsGlowGallery"]
[null,null,"PictureEffectsPresetGallery"]
[null,null,"PictureEffectsShadowGallery"]
[null,null,"PictureEffectsSoftEdgesGallery"]
[null,null,"PictureInsertFromFilePowerPoint"]
[null,null,"PicturePositionGallery"]
[null,null,"PictureRecolorAutomatic"]
[null,null,"PictureRecolorBlackAndWhite"]
[null,null,"PictureRecolorGallery"]
[null,null,"PictureRecolorGrayscale"]
[null,null,"PictureRecolorWashout"]
[null,null,"PictureReflectionGallery"]
[null,null,"PictureReflectionGalleryItem"]
[null,null,"PictureReset"]
[null,null,"PictureRotationGallery"]
[null,null,"PicturesCompress"]
[null,null,"PictureSetTransparentColor"]
[null,null,"PictureStylesGallery"]
[null,null,"Piggy"]
[null,null,"PivotAutoCalcMenu"]
[null,null,"PivotAutoFilter"]
[null,null,"PivotChartClearMenu"]
[null,null,"PivotChartFilterShow"]
[null,null,"PivotChartInsert"]
[null,null,"PivotChartMultiplePlots"]
[null,null,"PivotChartMultipleUnified"]
[null,null,"PivotChartSortByTotalMenu"]
[null,null,"PivotChartType"]
[null,null,"PivotClearCustomOrdering"]
[null,null,"PivotCollapseFieldAccess"]
[null,null,"PivotDropAreas"]
[null,null,"PivotExpandField"]
[null,null,"PivotExpandIndicators"]
[null,null,"PivotExportToExcel"]
[null,null,"PivotFieldListShowHide"]
[null,null,"PivotFormulasMenu"]
[null,null,"PivotHideDetails"]
[null,null,"PivotMoveField"]
[null,null,"PivotMoveToColumnArea"]
[null,null,"PivotMoveToDetailArea"]
[null,null,"PivotMoveToFieldArea"]
[null,null,"PivotMoveToFilterArea"]
[null,null,"PivotPlusMinusButtonsShowHide"]
[null,null,"PivotPlusMinusFieldHeadersShowHide"]
[null,null,"PivotRemoveField"]
[null,null,"PivotShowAsMenu"]
[null,null,"PivotShowDetails"]
[null,null,"PivotShowTopAndBottomItemsMenu"]
[null,null,"PivotSubtotal"]
[null,null,"PivotSwitchRowColumn"]
[null,null,"PivotTableBlankRowsInsert"]
[null,null,"PivotTableBlankRowsRemove"]
[null,null,"PivotTableChangeDataSource"]
[null,null,"PivotTableClearMenu"]
[null,null,"PivotTableEnableSelection"]
[null,null,"PivotTableFieldSettings"]
[null,null,"PivotTableFormulasMenu"]
[null,null,"PivotTableGenerateGetPivotData"]
[null,null,"PivotTableGrandTotalsOffForRowsAndColumns"]
[null,null,"PivotTableGrandTotalsOnForColumnsOnly"]
[null,null,"PivotTableGrandTotalsOnForRowsAndColumns"]
[null,null,"PivotTableGrandTotalsOnForRowsOnly"]
[null,null,"PivotTableGroupSelection"]
[null,null,"PivotTableLayoutBlankRows"]
[null,null,"PivotTableLayoutGrandTotals"]
[null,null,"PivotTableLayoutReportLayout"]
[null,null,"PivotTableLayoutShowInCompactForm"]
[null,null,"PivotTableLayoutShowInOutlineForm"]
[null,null,"PivotTableLayoutShowInTabularForm"]
[null,null,"PivotTableLayoutSubtotals"]
[null,null,"PivotTableListFormulas"]
[null,null,"PivotTableMove"]
[null,null,"PivotTableNewStyle"]
[null,null,"PivotTableOlapConvertToFormulas"]
[null,null,"PivotTableOlapPropertyFields"]
[null,null,"PivotTableOlapTools"]
[null,null,"PivotTableOptions"]
[null,null,"PivotTableOptionsMenu"]
[null,null,"PivotTableSelectData"]
[null,null,"PivotTableSelectFlyout"]
[null,null,"PivotTableSelectLabel"]
[null,null,"PivotTableSelectLabelAndData"]
[null,null,"PivotTableShowPages"]
[null,null,"PivotTableSubtotalsDoNotShow"]
[null,null,"PivotTableSubtotalsOnBottom"]
[null,null,"PivotTableSubtotalsOnTop"]
[null,null,"PlayMacro"]
[null,null,"PlusSign"]
[null,null,"PositionAbsoluteMarks"]
[null,null,"PositionAnchoringGallery"]
[null,null,"PositionFitToWindow"]
[null,null,"PostcardWizard"]
[null,null,"PostReplyToFolder"]
[null,null,"PowerPointPageSetup"]
[null,null,"PowerPointParagraphDialog"]
[null,null,"PrintAreaMenu"]
[null,null,"PrintAreaSetPrintArea"]
[null,null,"PrintDataOnly"]
[null,null,"PrintListRange"]
[null,null,"PrintOptionsMenu"]
[null,null,"PrintOptionsMenuWord"]
[null,null,"PrintPreviewClose"]
[null,null,"PrintPreviewMultiplePagesMenu"]
[null,null,"PrintPreviewShrinkOnePage"]
[null,null,"PrintPreviewZoomTwoPages"]
[null,null,"PrintSetupDialog"]
[null,null,"PrintTitles"]
[null,null,"ProjectManageDeliverables"]
[null,null,"ProjectManageDependenciesOnDeliverables"]
[null,null,"ProjectRecalcChangeHighlighting"]
[null,null,"ProjectStatusReports"]
[null,null,"PropertyInsert"]
[null,null,"PropertySheet"]
[null,null,"ProposeNewTime"]
[null,null,"ProtectDocument"]
[null,null,"PublishToPdfOrEdoc"]
[null,null,"Pushpin"]
[null,null,"Q"]
[null,null,"QueryAppend"]
[null,null,"QueryBuilder"]
[null,null,"QueryCrosstab"]
[null,null,"QueryDataDefinition"]
[null,null,"QueryDelete"]
[null,null,"QueryInsertColumns"]
[null,null,"QueryMakeTable"]
[null,null,"QueryParameters"]
[null,null,"QueryReturnGallery"]
[null,null,"QuerySelectQueryType"]
[null,null,"QueryShowTable"]
[null,null,"QueryTableNamesShowHide"]
[null,null,"QueryUnionQuery"]
[null,null,"QueryUpdate"]
[null,null,"QuickPartsInsertGallery"]
[null,null,"QuickStylesGallery"]
[null,null,"QuickStylesSets"]
[null,null,"R"]
[null,null,"ReadingMode"]
[null,null,"ReadingModeMini"]
[null,null,"ReadingViewAllowMultiplePages"]
[null,null,"ReadingViewAllowTyping"]
[null,null,"ReadingViewClose"]
[null,null,"ReadingViewMarginSettingsMenu"]
[null,null,"ReadingViewShowOnePage"]
[null,null,"ReadingViewShowPrintedPage"]
[null,null,"ReadingViewShowTwoPages"]
[null,null,"ReadingViewViewOptionsMenu"]
[null,null,"ReadOnly"]
[null,null,"RecentFileList"]
[null,null,"RecordNarration"]
[null,null,"RecordsAddFromOutlook"]
[null,null,"RecordsCollapseAllSubdatasheets"]
[null,null,"RecordsDeleteRecord"]
[null,null,"RecordsExpandAllSubdatasheets"]
[null,null,"RecordsFreezeColumns"]
[null,null,"RecordsInsertSubdatasheet"]
[null,null,"RecordsMoreRecordsMenu"]
[null,null,"RecordsRefreshMenu"]
[null,null,"RecordsSaveAsOutlookContact"]
[null,null,"RecordsSaveRecord"]
[null,null,"RecoverInviteToMeeting"]
[null,null,"RecurrenceEdit"]
[null,null,"RecurrenceEditSeries"]
[null,null,"Redo"]
[null,null,"ReflectionGallery"]
[null,null,"Refresh"]
[null,null,"RefreshAll"]
[null,null,"RefreshCancel"]
[null,null,"RegionLayoutMenu"]
[null,null,"RelationshipDesignAllRelationships"]
[null,null,"RelationshipsDirectRelationships"]
[null,null,"RelationshipsEditRelationships"]
[null,null,"RelationshipsHideTable"]
[null,null,"RelationshipsReport"]
[null,null,"ReminderSound"]
[null,null,"RemoveCitation"]
[null,null,"RemoveDuplicates"]
[null,null,"Repaginate"]
[null,null,"Repeat"]
[null,null,"ReplaceDialog"]
[null,null,"ReplicationCreateReplica"]
[null,null,"ReplicationOptionsMenu"]
[null,null,"ReplicationRecoverDesignMaster"]
[null,null,"ReplicationResolveConflicts"]
[null,null,"ReplicationSynchronizeNow"]
[null,null,"ReplyAll"]
[null,null,"ResponsesMenu"]
[null,null,"ResultsPaneStartFindAndReplace"]
[null,null,"ReturnToTaskList"]
[null,null,"RevealFormatting"]
[null,null,"ReviewAcceptChange"]
[null,null,"ReviewAcceptOrRejectChangeDialog"]
[null,null,"ReviewAllowUsersToEditRanges"]
[null,null,"ReviewBalloonsMenu"]
[null,null,"ReviewCombineRevisions"]
[null,null,"ReviewCompareLastVersion"]
[null,null,"ReviewCompareMajorVersion"]
[null,null,"ReviewCompareMenu"]
[null,null,"ReviewCompareSpecificVersion"]
[null,null,"ReviewCompareTwoVersions"]
[null,null,"ReviewDeleteAllMarkupOnSlide"]
[null,null,"ReviewDeleteComment"]
[null,null,"ReviewDisplayForReview"]
[null,null,"ReviewEditComment"]
[null,null,"ReviewHighlightChanges"]
[null,null,"ReviewJapaneseConsistencyChecker"]
[null,null,"ReviewNewComment"]
[null,null,"ReviewNextChange"]
[null,null,"ReviewNextChangeClassic"]
[null,null,"ReviewNextComment"]
[null,null,"ReviewPreviousChange"]
[null,null,"ReviewPreviousChangeClassic"]
[null,null,"ReviewPreviousComment"]
[null,null,"ReviewProtectAndShareWorkbook"]
[null,null,"ReviewProtectWorkbook"]
[null,null,"ReviewRejectChange"]
[null,null,"ReviewReplyWithChanges"]
[null,null,"ReviewReviewingPane"]
[null,null,"ReviewReviewingPaneVertical"]
[null,null,"ReviewSendForReview"]
[null,null,"ReviewShareWorkbook"]
[null,null,"ReviewShowAllComments"]
[null,null,"ReviewShowInk"]
[null,null,"ReviewShowMarkupMenu"]
[null,null,"ReviewShowOrHideComment"]
[null,null,"ReviewShowOrHideMarkup"]
[null,null,"ReviewTrackChanges"]
[null,null,"ReviewViewChangesInTheSourceDocument"]
[null,null,"RightArrow2"]
[null,null,"RightToLeftDocument"]
[null,null,"Risks"]
[null,null,"RmsImportanceCheck"]
[null,null,"RmsImportanceUncheck"]
[null,null,"RmsInvokeBrowser"]
[null,null,"RmsNavigationBar"]
[null,null,"RmsNavigationBarHome"]
[null,null,"RmsSendBizcard"]
[null,null,"RmsSendBizcardDesign"]
[null,null,"RoutingSlip"]
[null,null,"RowHeight"]
[null,null,"RssShareThisFeed"]
[null,null,"RulerShowHide"]
[null,null,"RunDialog"]
[null,null,"RunThisForm"]
[null,null,"S"]
[null,null,"SadFace"]
[null,null,"SaveAll"]
[null,null,"SaveAndClose"]
[null,null,"SaveAndNew"]
[null,null,"SaveAsQuery"]
[null,null,"SaveAttachments"]
[null,null,"SaveSelectionToCoverPageGallery"]
[null,null,"SaveSelectionToFooterGallery"]
[null,null,"SaveSelectionToHeaderGallery"]
[null,null,"SaveSelectionToPageNumberBottom"]
[null,null,"SaveSelectionToPageNumberMargin"]
[null,null,"SaveSelectionToPageNumberTop"]
[null,null,"SaveSelectionToQuickPartGallery"]
[null,null,"SaveSelectionToQuickTablesGallery"]
[null,null,"SaveSelectionToTableOfContentsGallery"]
[null,null,"SaveSelectionToTextBoxGallery"]
[null,null,"SaveSelectionToWaterMarkGallery"]
[null,null,"SaveSentItemsMenu"]
[null,null,"Schedule"]
[null,null,"ScreenNavigatorBack"]
[null,null,"ScreenNavigatorForward"]
[null,null,"ScriptDebugger"]
[null,null,"SearchLibraries"]
[null,null,"SearchUI"]
[null,null,"SelectAll"]
[null,null,"SelectAllAccess"]
[null,null,"SelectAllRecords"]
[null,null,"SelectCurrentRegion"]
[null,null,"SelectionPane"]
[null,null,"SelectionPaneHidden"]
[null,null,"SelectRecord"]
[null,null,"SendCopySendToMailRecipient"]
[null,null,"SendStatusReport"]
[null,null,"ServerConnection"]
[null,null,"ServerProperties"]
[null,null,"ServerRestoreSqlDatabase"]
[null,null,"SetDatabasePassword"]
[null,null,"SetLanguage"]
[null,null,"SetPertWeights"]
[null,null,"Shadow"]
[null,null,"ShadowNudgeDownClassic"]
[null,null,"ShadowNudgeLeftClassic"]
[null,null,"ShadowNudgeRightClassic"]
[null,null,"ShadowNudgeUpClassic"]
[null,null,"ShadowOnOrOffClassic"]
[null,null,"ShapeArc"]
[null,null,"ShapeCloud"]
[null,null,"ShapeConnectorStyleMenu"]
[null,null,"ShapeCurve"]
[null,null,"ShapeDonut"]
[null,null,"ShapeDownArrow"]
[null,null,"ShapeElbowConnector"]
[null,null,"ShapeElbowConnectorArrow"]
[null,null,"ShapeFillColorPickerClassic"]
[null,null,"ShapeFillTextureGallery"]
[null,null,"ShapeFreeform"]
[null,null,"ShapeHeart"]
[null,null,"ShapeIsoscelesTriangle"]
[null,null,"ShapeLeftArrow"]
[null,null,"ShapeLeftBrace"]
[null,null,"ShapeLightningBolt"]
[null,null,"ShapeOutlineColorPicker"]
[null,null,"ShapeOval"]
[null,null,"ShapeRectangle"]
[null,null,"ShapeRerouteConnectors"]
[null,null,"ShapeRightArrow"]
[null,null,"ShapeRightBrace"]
[null,null,"ShapeRoundedRectangle"]
[null,null,"ShapeRoundedRectangularCallout"]
[null,null,"ShapeScribble"]
[null,null,"ShapesDuplicate"]
[null,null,"ShapeSeal16"]
[null,null,"ShapeSeal24"]
[null,null,"ShapeSeal8"]
[null,null,"ShapeSmileyFace"]
[null,null,"ShapesMoreShapes"]
[null,null,"ShapeStar"]
[null,null,"ShapeStraightConnector"]
[null,null,"ShapeStraightConnectorArrow"]
[null,null,"ShapeStylesGallery"]
[null,null,"ShapeUpArrow"]
[null,null,"SharePointListsWorkOffline"]
[null,null,"SharingNone"]
[null,null,"SharingOpenMailFolder"]
[null,null,"SharingOpenNotesFolder"]
[null,null,"SharingOpenWssContactList"]
[null,null,"SharingOpenWssDiscussionList"]
[null,null,"SheetBackground"]
[null,null,"SheetDelete"]
[null,null,"SheetInsert"]
[null,null,"SheetProtect"]
[null,null,"ShowAllFieldsPage"]
[null,null,"ShowBcc"]
[null,null,"ShowClipboard"]
[null,null,"ShowCustomPage"]
[null,null,"ShowDetailsPage"]
[null,null,"ShowFormRegionPage"]
[null,null,"ShowFormulas"]
[null,null,"ShowFrom"]
[null,null,"ShowNotesPage"]
[null,null,"ShowSchedulingPage"]
[null,null,"ShowTaskDetailsPage"]
[null,null,"ShowTimeAsGallery"]
[null,null,"ShowTimeZones"]
[null,null,"SignatureInsertMenu"]
[null,null,"SignatureLineInsert"]
[null,null,"SignatureShow"]
[null,null,"SignaturesLoading"]
[null,null,"SizeToControlHeight"]
[null,null,"SizeToControlHeightAndWidth"]
[null,null,"SizeToControlWidth"]
[null,null,"SizeToFit"]
[null,null,"SizeToNarrowest"]
[null,null,"SizeToShortest"]
[null,null,"SizeToTallest"]
[null,null,"SizeToWidest"]
[null,null,"SkipOccurrence"]
[null,null,"SlideBackgroundFormatDialog"]
[null,null,"SlideBackgroundReset"]
[null,null,"SlideDelete"]
[null,null,"SlideHide"]
[null,null,"SlideMasterChartPlaceholderInsert"]
[null,null,"SlideMasterClipArtPlaceholderInsert"]
[null,null,"SlideMasterContentPlaceholderInsert"]
[null,null,"SlideMasterDiagramPlaceholderInsert"]
[null,null,"SlideMasterInsertLayout"]
[null,null,"SlideMasterMasterLayout"]
[null,null,"SlideMasterMediaPlaceholderInsert"]
[null,null,"SlideMasterPicturePlaceholderInsert"]
[null,null,"SlideMasterPreserveMaster"]
[null,null,"SlideMasterRenameMaster"]
[null,null,"SlideMasterTablePlaceholderInsert"]
[null,null,"SlideMasterTextPlaceholderInsert"]
[null,null,"SlideMasterVerticalContentPlaceholderInsert"]
[null,null,"SlideMasterVerticalTextPlaceholderInsert"]
[null,null,"SlideMiniature"]
[null,null,"SlideNew"]
[null,null,"SlideReset"]
[null,null,"SlidesFromOutline"]
[null,null,"SlideShowCustom"]
[null,null,"SlideShowCustomMenu"]
[null,null,"SlideShowFromCurrent"]
[null,null,"SlideShowInAWindow"]
[null,null,"SlideShowRehearseTimings"]
[null,null,"SlideShowResolutionGallery"]
[null,null,"SlideShowSetUpDialog"]
[null,null,"SlideShowShowPresentationOnGallery"]
[null,null,"SlideShowUseRehearsedTimings"]
[null,null,"SlideShowVolume"]
[null,null,"SlidesPerPage1Slide"]
[null,null,"SlidesPerPage2Slides"]
[null,null,"SlidesPerPage3Slides"]
[null,null,"SlidesPerPage4Slides"]
[null,null,"SlidesPerPage6Slides"]
[null,null,"SlidesPerPage9Slides"]
[null,null,"SlidesPerPageGallery"]
[null,null,"SlidesPerPageSlideOutline"]
[null,null,"SlidesReuseSlides"]
[null,null,"SlideThemesGallery"]
[null,null,"SlideTransitionApplyToAll"]
[null,null,"SmartArtAddAssistant"]
[null,null,"SmartArtAddBullet"]
[null,null,"SmartArtAddShape"]
[null,null,"SmartArtAddShapeAbove"]
[null,null,"SmartArtAddShapeAfter"]
[null,null,"SmartArtAddShapeBefore"]
[null,null,"SmartArtAddShapeBelow"]
[null,null,"SmartArtChangeColorsGallery"]
[null,null,"SmartArtEditIn2D"]
[null,null,"SmartArtInsert"]
[null,null,"SmartArtInsertBulletRTL"]
[null,null,"SmartArtLayoutGallery"]
[null,null,"SmartArtMoreLayoutsDialog"]
[null,null,"SmartArtOrganizationChartBoth"]
[null,null,"SmartArtOrganizationChartLeftHanging"]
[null,null,"SmartArtOrganizationChartMenu"]
[null,null,"SmartArtOrganizationChartRightHanging"]
[null,null,"SmartArtOrganizationChartStandard"]
[null,null,"SmartArtResetGraphic"]
[null,null,"SmartArtResetShape"]
[null,null,"SmartArtRightToLeft"]
[null,null,"SmartArtStylesGallery"]
[null,null,"SmartArtTextPane"]
[null,null,"SnapToGrid"]
[null,null,"SnapToShapes"]
[null,null,"SortAndFilterAdvanced"]
[null,null,"SortClear"]
[null,null,"SortDialog"]
[null,null,"SortDown"]
[null,null,"SortFilterMenu"]
[null,null,"SortRemoveAllSorts"]
[null,null,"SortUp"]
[null,null,"SoundInsertFromClipOrganizer"]
[null,null,"SoundMaximumFileSize"]
[null,null,"SourceControlAddDatabase"]
[null,null,"SourceControlAddObjects"]
[null,null,"SourceControlCheckIn"]
[null,null,"SourceControlCheckOut"]
[null,null,"SourceControlCreateDatabaseFromProject"]
[null,null,"SourceControlGetLatestVersion"]
[null,null,"SourceControlOptions"]
[null,null,"SourceControlProperties"]
[null,null,"SourceControlRefreshStatus"]
[null,null,"SourceControlRun"]
[null,null,"SourceControlShareObjects"]
[null,null,"SourceControlShowDifferences"]
[null,null,"SourceControlShowHistory"]
[null,null,"SourceControlUndoCheckOut"]
[null,null,"Spade"]
[null,null,"SpeakByColumns"]
[null,null,"SpeakByRows"]
[null,null,"SpeakCells"]
[null,null,"SpeakerNotes"]
[null,null,"SpeakOnEnter"]
[null,null,"SpeakStop"]
[null,null,"SpeechMicrophone"]
[null,null,"Spelling"]
[null,null,"SplitCells"]
[null,null,"StarRatedEmpty"]
[null,null,"StarRatedFull"]
[null,null,"StarRatedHalf"]
[null,null,"StartAfterPrevious"]
[null,null,"StartOfDocument"]
[null,null,"StartOfLine"]
[null,null,"StartTimer"]
[null,null,"StarUnratedEmpty"]
[null,null,"StarUnratedFull"]
[null,null,"StopAnimation"]
[null,null,"StopLeftToRight"]
[null,null,"StopLtrDown"]
[null,null,"StopLtrFocus"]
[null,null,"StopLtrHover"]
[null,null,"Strikethrough"]
[null,null,"StylesDialogClassic"]
[null,null,"StylesManageStyles"]
[null,null,"StylesModifyStyle"]
[null,null,"StylesPane"]
[null,null,"StylesPaneNewStyle"]
[null,null,"StylesStyleInspector"]
[null,null,"StylesStyleSeparator"]
[null,null,"SubdocumentOpen"]
[null,null,"SubformInNewWindow"]
[null,null,"SubformMenu"]
[null,null,"Subscript"]
[null,null,"SummarizeSlide"]
[null,null,"Superscript"]
[null,null,"SymbolInsert"]
[null,null,"T"]
[null,null,"TableAutoFitContents"]
[null,null,"TableAutoFitFixedColumnWidth"]
[null,null,"TableAutoFitWindow"]
[null,null,"TableAutoFormat"]
[null,null,"TableBorderPenColorPicker"]
[null,null,"TableCellAlignBottom"]
[null,null,"TableCellAlignBottomCenter"]
[null,null,"TableCellAlignBottomLeft"]
[null,null,"TableCellAlignBottomRight"]
[null,null,"TableCellAlignCenterVertically"]
[null,null,"TableCellAlignMiddleCenter"]
[null,null,"TableCellAlignMiddleLeft"]
[null,null,"TableCellAlignMiddleRight"]
[null,null,"TableCellAlignTop"]
[null,null,"TableCellAlignTopCenter"]
[null,null,"TableCellAlignTopLeft"]
[null,null,"TableCellAlignTopRight"]
[null,null,"TableCellCustomMarginsDialog"]
[null,null,"TableColumnsDelete"]
[null,null,"TableColumnsDeleteExcel"]
[null,null,"TableColumnsDistribute"]
[null,null,"TableColumnSelect"]
[null,null,"TableColumnsInsertLeft"]
[null,null,"TableColumnsInsertLeftExcel"]
[null,null,"TableColumnsInsertRight"]
[null,null,"TableColumnsInsertRightExcel"]
[null,null,"TableConvertToRange"]
[null,null,"TableDeleteRowsAndColumnsMenuWord"]
[null,null,"TableDesign"]
[null,null,"TableDrawTable"]
[null,null,"TableEffectsCellBevelGallery"]
[null,null,"TableEffectsMenu"]
[null,null,"TableEraser"]
[null,null,"TableExcelSpreadsheetInsert"]
[null,null,"TableExportTableToSharePointList"]
[null,null,"TableExportTableToVisioPivotDiagram"]
[null,null,"TableFind"]
[null,null,"TableHeight"]
[null,null,"TableIndexes"]
[null,null,"TableInsert"]
[null,null,"TableInsertCellsDialog"]
[null,null,"TableInsertExcel"]
[null,null,"TableInsertMultidiagonalCell"]
[null,null,"TableListAlertMe"]
[null,null,"TableListPermissions"]
[null,null,"TableOfAuthoritiesInsert"]
[null,null,"TableOfContentsDialog"]
[null,null,"TableOfContentsGallery"]
[null,null,"TableOfContentsInFrame"]
[null,null,"TableOfContentsRemove"]
[null,null,"TableOfContentsUpdate"]
[null,null,"TableOfFiguresInsert"]
[null,null,"TableOpenInBrowser"]
[null,null,"TablePropertiesDialog"]
[null,null,"TableRepeatHeaderRows"]
[null,null,"TableResize"]
[null,null,"TableRowsDelete"]
[null,null,"TableRowsDeleteExcel"]
[null,null,"TableRowsDistribute"]
[null,null,"TableRowSelect"]
[null,null,"TableRowsInsertAboveExcel"]
[null,null,"TableRowsInsertAboveWord"]
[null,null,"TableRowsInsertBelowExcel"]
[null,null,"TableRowsInsertBelowWord"]
[null,null,"TableRowsInsertWord"]
[null,null,"TableSelect"]
[null,null,"TableSelectCell"]
[null,null,"TableSelectVisibleCells"]
[null,null,"TableSetLeftToRight"]
[null,null,"TableSetRightToLeft"]
[null,null,"TableSharePointListsModifyColumnsAndSettings"]
[null,null,"TableSharePointListsModifyWorkflow"]
[null,null,"TableSharePointListsRefreshList"]
[null,null,"TableSplitTable"]
[null,null,"TableStyleBandedColumns"]
[null,null,"TableStyleBandedColumnsPowerPoint"]
[null,null,"TableStyleBandedRows"]
[null,null,"TableStyleBandedRowsPowerPoint"]
[null,null,"TableStyleClear"]
[null,null,"TableStyleColumnHeaders"]
[null,null,"TableStyleFirstColumn"]
[null,null,"TableStyleFirstColumnPowerPoint"]
[null,null,"TableStyleFirstRowPowerPoint"]
[null,null,"TableStyleLastColumn"]
[null,null,"TableStyleLastColumnPowerPoint"]
[null,null,"TableStyleModify"]
[null,null,"TableStyleNew"]
[null,null,"TableStyleRowHeaders"]
[null,null,"TableStyleTotalRowPowerPoint"]
[null,null,"TableStyleTotalsRow"]
[null,null,"TableSummarizeWithPivot"]
[null,null,"TableTestValidationRules"]
[null,null,"TableUnlinkExternalData"]
[null,null,"TableWidth"]
[null,null,"TabOrder"]
[null,null,"TagMarkComplete"]
[null,null,"TechnicalSupport"]
[null,null,"TentativeAcceptInvitation"]
[null,null,"TextAlignGallery"]
[null,null,"TextAlignLetterJustify"]
[null,null,"TextAlignStretchJustify"]
[null,null,"TextAlignWordJustify"]
[null,null,"TextAllCaps"]
[null,null,"TextBoxInsert"]
[null,null,"TextBoxInsertVertical"]
[null,null,"TextBoxNextLinked"]
[null,null,"TextBoxPreviousLinked"]
[null,null,"TextDirection"]
[null,null,"TextDirectionContext"]
[null,null,"TextDirectionLeftToRight"]
[null,null,"TextDirectionOptionsDialog"]
[null,null,"TextDirectionRightToLeft"]
[null,null,"TextEffectGlowGallery"]
[null,null,"TextEffects3DRotationGallery"]
[null,null,"TextEffectShadowGallery"]
[null,null,"TextEffectsMenu"]
[null,null,"TextEffectTracking"]
[null,null,"TextEffectTransformGallery"]
[null,null,"TextFromFileInsert"]
[null,null,"TextOrientationAngleClockwise"]
[null,null,"TextOrientationAngleCounterclockwise"]
[null,null,"TextOrientationRotateDown"]
[null,null,"TextOrientationRotateUp"]
[null,null,"TextOrientationVertical"]
[null,null,"TextOutlineColorPicker"]
[null,null,"TextReflectionGallery"]
[null,null,"TextSmallCaps"]
[null,null,"TextWrappingBehindText"]
[null,null,"TextWrappingEditWrapPoints"]
[null,null,"TextWrappingInFrontOfText"]
[null,null,"TextWrappingInLineWithText"]
[null,null,"TextWrappingMenu"]
[null,null,"TextWrappingMenuClassic"]
[null,null,"TextWrappingSquare"]
[null,null,"TextWrappingTight"]
[null,null,"TextWrappingTopAndBottom"]
[null,null,"ThemeBrowseForThemesPowerPoint"]
[null,null,"ThemeColorsGallery"]
[null,null,"ThemeEffectsGallery"]
[null,null,"ThemeFontsGallery"]
[null,null,"ThemeSaveCurrentPowerPoint"]
[null,null,"ThemesGallery"]
[null,null,"Thesaurus"]
[null,null,"TipWizardHelp"]
[null,null,"ToolboxAudio"]
[null,null,"ToolboxMarquee"]
[null,null,"ToolboxVideo"]
[null,null,"TraceDependentRemoveArrows"]
[null,null,"TraceDependents"]
[null,null,"TraceError"]
[null,null,"TracePrecedents"]
[null,null,"TracePrecedentsRemoveArrows"]
[null,null,"TraceRemoveAllArrows"]
[null,null,"TransitionTimeAutomaticallyAfter"]
[null,null,"Translate"]
[null,null,"TranslateToSimplifiedChinese"]
[null,null,"TranslateToTraditionalChinese"]
[null,null,"TranslationToolTip"]
[null,null,"TripaneViewMode"]
[null,null,"TrustCenter"]
[null,null,"U"]
[null,null,"Underline"]
[null,null,"UnderlineDouble"]
[null,null,"UnderlineWords"]
[null,null,"Undo"]
[null,null,"UpgradeDocument"]
[null,null,"UpgradePresentation"]
[null,null,"UpgradeWorkbook"]
[null,null,"UseVotingButtonsMenu"]
[null,null,"V"]
[null,null,"VerticalSpacingDecrease"]
[null,null,"VerticalSpacingIncrease"]
[null,null,"ViewAllProposals"]
[null,null,"ViewAppointmentInCalendar"]
[null,null,"ViewBackToColorView"]
[null,null,"ViewCustomViews"]
[null,null,"ViewDisplayInGrayscale"]
[null,null,"ViewDisplayInHighContrast"]
[null,null,"ViewDisplayInPureBlackAndWhite"]
[null,null,"ViewDocumentActionsPane"]
[null,null,"ViewDocumentMap"]
[null,null,"ViewDraftView"]
[null,null,"ViewFormulaBar"]
[null,null,"ViewFreezePanesGallery"]
[null,null,"ViewFullScreenView"]
[null,null,"ViewGoBack"]
[null,null,"ViewGoForward"]
[null,null,"ViewGridlinesFrontPage"]
[null,null,"ViewGridlinesWord"]
[null,null,"ViewHandoutMasterView"]
[null,null,"ViewNextItemMenu"]
[null,null,"ViewNormalViewExcel"]
[null,null,"ViewNormalViewPowerPoint"]
[null,null,"ViewNotesMasterView"]
[null,null,"ViewNotesPageView"]
[null,null,"ViewOnlineConnection"]
[null,null,"ViewOnlineLayoutViewClassic"]
[null,null,"ViewOutlineView"]
[null,null,"ViewPageBreakPreviewView"]
[null,null,"ViewPageLayoutView"]
[null,null,"ViewPrintLayoutView"]
[null,null,"ViewRulerExcel"]
[null,null,"ViewRulerPowerPoint"]
[null,null,"ViewsAdpDiagramSqlView"]
[null,null,"ViewsFormView"]
[null,null,"ViewSheetGridlines"]
[null,null,"ViewsLayoutView"]
[null,null,"ViewSlideMasterView"]
[null,null,"ViewSlideShowView"]
[null,null,"ViewSlideSorterView"]
[null,null,"ViewSlideView"]
[null,null,"ViewThumbnails"]
[null,null,"ViewVisualBasicCode"]
[null,null,"ViewWebLayoutView"]
[null,null,"VisibilityHidden"]
[null,null,"VisibilityInherit"]
[null,null,"VisibilityVisible"]
[null,null,"VisualBasic"]
[null,null,"VisualBasicReferences"]
[null,null,"VoiceInsert"]
[null,null,"VoiceInsertInComment"]
[null,null,"W"]
[null,null,"WatchWindow"]
[null,null,"WatermarkGallery"]
[null,null,"WatermarkRemove"]
[null,null,"WebControlHidden"]
[null,null,"WebControlPassword"]
[null,null,"WebControlReset"]
[null,null,"WebControlSubmit"]
[null,null,"WebControlSubmitWithImage"]
[null,null,"WebControlTextArea"]
[null,null,"WebPagePreview"]
[null,null,"WebServerDiscussions"]
[null,null,"WhatIfAnalysisMenu"]
[null,null,"WindowClose"]
[null,null,"WindowHide"]
[null,null,"WindowMinimize"]
[null,null,"WindowMoveSplit"]
[null,null,"WindowNew"]
[null,null,"WindowResetPosition"]
[null,null,"WindowRestore"]
[null,null,"WindowsArrangeAll"]
[null,null,"WindowsArrangeIcons"]
[null,null,"WindowSaveWorkspace"]
[null,null,"WindowsCascade"]
[null,null,"WindowSideBySide"]
[null,null,"WindowSideBySideSynchronousScrolling"]
[null,null,"WindowSplit"]
[null,null,"WindowsTileHorizontally"]
[null,null,"WindowSwitchWindowsMenuExcel"]
[null,null,"WindowUnhide"]
[null,null,"WordArtEditTextClassic"]
[null,null,"WordArtEvenTextHeightClassic"]
[null,null,"WordArtFormatDialog"]
[null,null,"WordArtInsertDialogClassic"]
[null,null,"WordArtVerticalText"]
[null,null,"WordCloseParaAbove"]
[null,null,"WordCloseParaBelow"]
[null,null,"WordCountList"]
[null,null,"WordOpenParaAbove"]
[null,null,"WordOpenParaBelow"]
[null,null,"WordPicture"]
[null,null,"WorkflowComplete"]
[null,null,"WorkflowPending"]
[null,null,"WorkgroupAdmin"]
[null,null,"WrapText"]
[null,null,"X"]
[null,null,"XmlDataRefresh"]
[null,null,"XmlExpansionPacksExcel"]
[null,null,"XmlExport"]
[null,null,"XmlImport"]
[null,null,"XmlSchema"]
[null,null,"XmlTransformation"]
[null,null,"Y"]
[null,null,"Z"]
[null,null,"Zoom100"]
[null,null,"ZoomCurrent100"]
[null,null,"ZoomFitToWindow"]
[null,null,"ZoomIn"]
[null,null,"ZoomOnePage"]
[null,null,"ZoomOut"]
[null,null,"ZoomPageWidth"]
[null,null,"ZoomPrintPreviewExcel"]
[null,null,"ZoomToSelection"]
[null,null,"_3DBevelPictureTopGallery"]
[null,null,"_3DEffectsOnOffClassic"]
[null,null,"_3DExtrusionDepth144Classic"]
[null,null,"_3DExtrusionDepth288Classic"]
[null,null,"_3DExtrusionDepth36Classic"]
[null,null,"_3DExtrusionDepth72Classic"]
[null,null,"_3DExtrusionDepthInfinityClassic"]
[null,null,"_3DExtrusionDepthNoneClassic"]
[null,null,"_3DExtrusionDirectionClassic"]
[null,null,"_3DExtrusionParallelClassic"]
[null,null,"_3DExtrusionPerspectiveClassic"]
[null,null,"_3DLightingClassic"]
[null,null,"_3DLightingDimClassic"]
[null,null,"_3DLightingFlatClassic"]
[null,null,"_3DLightingNormalClassic"]
[null,null,"_3DMaterialMetal"]
[null,null,"_3DMaterialMixed"]
[null,null,"_3DMaterialPlastic"]
[null,null,"_3DPerspectiveDecrease"]
[null,null,"_3DPerspectiveIncrease"]
[null,null,"_3DRotationGallery"]
[null,null,"_3DStyle"]
[null,null,"_3DSurfaceMaterialClassic"]
[null,null,"_3DSurfaceMatteClassic"]
[null,null,"_3DSurfaceMetalClassic"]
[null,null,"_3DSurfacePlasticClassic"]
[null,null,"_3DSurfaceWireFrameClassic"]
[null,null,"_3DTiltDownClassic"]
[null,null,"_3DTiltLeftClassic"]
[null,null,"_3DTiltRightClassic"]
[null,null,"_3DTiltUpClassic"]